Publisher Label,Publisher URI,"Supplier","Net Amount £","Organisational Unit","Merchant Category Code","Purpose","Payment Date"
"Wolverhampton City Council","http://opendatacommunities.org/id/metropolitan-district-council/wolverhampton","THE WORKS",50,"Children & Young People Support Costs","5310","Equipment - Purchase","31/05/2019"
"Wolverhampton City Council","http://opendatacommunities.org/id/metropolitan-district-council/wolverhampton","Amazon.co.uk MN3183II4",15.96,"Children & Young People Support Costs","5969","Equipment - Purchase","31/05/2019"
"Wolverhampton City Council","http://opendatacommunities.org/id/metropolitan-district-council/wolverhampton","ROYAL CARPETS",125,"LAC Transitions Team","5713","Client Allowances","31/05/2019"
"Wolverhampton City Council","http://opendatacommunities.org/id/metropolitan-district-council/wolverhampton","Wix.com",93.13,"Technical Support","5817","Computing - Purchase of Software","31/05/2019"
"Wolverhampton City Council","http://opendatacommunities.org/id/metropolitan-district-council/wolverhampton","WILKO RETAIL LIMIT",16.79,"Education And Access","5722","Equipment - Purchase","31/05/2019"
"Wolverhampton City Council","http://opendatacommunities.org/id/metropolitan-district-council/wolverhampton","POST OFFICE COUNTER",8.7,"Looked After Team 2","9402","Comms - Postage","31/05/2019"
"Wolverhampton City Council","http://opendatacommunities.org/id/metropolitan-district-council/wolverhampton","ROYAL MAIL CHARGES",80,"Service Director City Assets","9402","Comms - Postage","31/05/2019"
"Wolverhampton City Council","http://opendatacommunities.org/id/metropolitan-district-council/wolverhampton","Trainline",50.62,"CIN/CP Social Work Unit - Area 3","4112","Public Transport","31/05/2019"
"Wolverhampton City Council","http://opendatacommunities.org/id/metropolitan-district-council/wolverhampton","CBA TENABLE",1700.53,"Strategic ICTS (ICT Serv Budget)","5817","Computing - Purchase of Software","31/05/2019"
"Wolverhampton City Council","http://opendatacommunities.org/id/metropolitan-district-council/wolverhampton","B&M RETAIL",207.37,"LAC Transitions Team","5310","Equipment - Purchase","31/05/2019"
"Wolverhampton City Council","http://opendatacommunities.org/id/metropolitan-district-council/wolverhampton","B&M RETAIL",2.49,"LAC Transitions Team","5310","Equipment - Purchase","31/05/2019"
"Wolverhampton City Council","http://opendatacommunities.org/id/metropolitan-district-council/wolverhampton","PREMIER INN 44536545",50.83,"Regional Adoption Agency","5812","Accommodation Costs","31/05/2019"
"Wolverhampton City Council","http://opendatacommunities.org/id/metropolitan-district-council/wolverhampton","PREMIER INN 44536545",417.92,"Regional Adoption Agency","5812","Accommodation Costs","31/05/2019"
"Wolverhampton City Council","http://opendatacommunities.org/id/metropolitan-district-council/wolverhampton","CREATIVE FRAMING",110,"Communications & Marketing - General","5971","Services - Professional Fees","31/05/2019"
"Wolverhampton City Council","http://opendatacommunities.org/id/metropolitan-district-council/wolverhampton","EB  APHA WEST MIDLANDS",35,"Healthy Life Expectancy","7399","Educ Trips, Holidays, Outings, Activity","31/05/2019"
"Wolverhampton City Council","http://opendatacommunities.org/id/metropolitan-district-council/wolverhampton","UCHECK HR00712277",36.4,"Legal Services","8999","Services - Professional Fees","31/05/2019"
"Wolverhampton City Council","http://opendatacommunities.org/id/metropolitan-district-council/wolverhampton","Trainline",-10.5,"Safeguarding Admin Resource","4112","Public Transport","30/05/2019"
"Wolverhampton City Council","http://opendatacommunities.org/id/metropolitan-district-council/wolverhampton","AMZNMktplace",41.58,"Safeguarding Admin Resource","5999","Equipment - Purchase","30/05/2019"
"Wolverhampton City Council","http://opendatacommunities.org/id/metropolitan-district-council/wolverhampton","WWW.ICELAND.CO.UK",46.81,"Bradley Resource Centre","5411","Provisions (Not for resale)","30/05/2019"
"Wolverhampton City Council","http://opendatacommunities.org/id/metropolitan-district-council/wolverhampton","WWW.FLAGSANDFLAGPOLES.",366,"Music Support Team","2741","Publications","30/05/2019"
"Wolverhampton City Council","http://opendatacommunities.org/id/metropolitan-district-council/wolverhampton","POUNDSTRETCHER 003",12.07,"LAC Transitions Team","5331","Equipment - Purchase","30/05/2019"
"Wolverhampton City Council","http://opendatacommunities.org/id/metropolitan-district-council/wolverhampton","34SP.com Ltd",6.25,"Early Years & Universal Service","4816","Computing - Purchase of Software","30/05/2019"
"Wolverhampton City Council","http://opendatacommunities.org/id/metropolitan-district-council/wolverhampton","DISCLOSURE & BARRING",13,"Head of Service Specialist Int Support","9399","Services - Fees and Charges","30/05/2019"
"Wolverhampton City Council","http://opendatacommunities.org/id/metropolitan-district-council/wolverhampton","POST OFFICE COUNTER",190,"Regional Adoption Agency","9402","Comms - Postage","30/05/2019"
"Wolverhampton City Council","http://opendatacommunities.org/id/metropolitan-district-council/wolverhampton","WALSALL COUNCIL",35.53,"Regional Adoption Agency","9399","Catering","30/05/2019"
"Wolverhampton City Council","http://opendatacommunities.org/id/metropolitan-district-council/wolverhampton","POST OFFICE COUNTER",3.94,"Fostering Team & Allowances","9402","Comms - Postage","30/05/2019"
"Wolverhampton City Council","http://opendatacommunities.org/id/metropolitan-district-council/wolverhampton","POST OFFICE COUNTER",246,"Fostering Team & Allowances","9402","Comms - Postage","30/05/2019"
"Wolverhampton City Council","http://opendatacommunities.org/id/metropolitan-district-council/wolverhampton","BEACONSFIELD GREGGS",2.75,"Mayoral Expenses","5812","Subsistence","30/05/2019"
"Wolverhampton City Council","http://opendatacommunities.org/id/metropolitan-district-council/wolverhampton","RINGGO PARKING",7.67,"Mayoral Expenses","7523","Parking Fees","30/05/2019"
"Wolverhampton City Council","http://opendatacommunities.org/id/metropolitan-district-council/wolverhampton","KFC BEACONSFIELD",6.41,"Mayoral Expenses","5814","Subsistence","30/05/2019"
"Wolverhampton City Council","http://opendatacommunities.org/id/metropolitan-district-council/wolverhampton","HOME BARGAINS WOLVERHA",21.82,"Cemeteries","5251","Equipment - Purchase","30/05/2019"
"Wolverhampton City Council","http://opendatacommunities.org/id/metropolitan-district-council/wolverhampton","COMPANIES HOUSE",12.5,"Legal Services","9399","Services - Fees and Charges","30/05/2019"
"Wolverhampton City Council","http://opendatacommunities.org/id/metropolitan-district-council/wolverhampton","TFW RAIL SERVICES",8,"Curatorial - Cultural Learning","4112","Public Transport","30/05/2019"
"Wolverhampton City Council","http://opendatacommunities.org/id/metropolitan-district-council/wolverhampton","THE FINANCIAL TIMES",-268.32,"Strategic Asset Management - General","5968","Subscriptions","30/05/2019"
"Wolverhampton City Council","http://opendatacommunities.org/id/metropolitan-district-council/wolverhampton","AMZNMKTPLACE AMAZON.CO",10.82,"Community Enablement","5999","Cleaning Supplies and Materials","30/05/2019"
"Wolverhampton City Council","http://opendatacommunities.org/id/metropolitan-district-council/wolverhampton","AMZNMktplace",81.07,"Global Budgets","5999","Equipment - Purchase","30/05/2019"
"Wolverhampton City Council","http://opendatacommunities.org/id/metropolitan-district-council/wolverhampton","ASDA SUPERSTORE",2.09,"Specialist Support Service - North","5411","Catering","30/05/2019"
"Wolverhampton City Council","http://opendatacommunities.org/id/metropolitan-district-council/wolverhampton","JOHNSTONES DEC CENTRE",60.47,"Ernest Bold Court","5231","Equipment - R & M","30/05/2019"
"Wolverhampton City Council","http://opendatacommunities.org/id/metropolitan-district-council/wolverhampton","THE SOLICITORS GROUP",177,"Central Training","8244","Training Expenses","30/05/2019"
"Wolverhampton City Council","http://opendatacommunities.org/id/metropolitan-district-council/wolverhampton","WWW.ARGOS.CO.UK",116.62,"Ernest Bold Court","5310","Equipment - Purchase","30/05/2019"
"Wolverhampton City Council","http://opendatacommunities.org/id/metropolitan-district-council/wolverhampton","COMPLETE CARE SHOP",84.95,"Ernest Bold Court","5399","Equipment - Purchase","30/05/2019"
"Wolverhampton City Council","http://opendatacommunities.org/id/metropolitan-district-council/wolverhampton","CITY OF WOLVERHAMPTON",13.33,"LAC Transitions Team","9399","Client Allowances","30/05/2019"
"Wolverhampton City Council","http://opendatacommunities.org/id/metropolitan-district-council/wolverhampton","WWW.PLANNINGPORTAL.CO.",254,"Statutory Services (10RM)","7399","Equipment - Purchase","29/05/2019"
"Wolverhampton City Council","http://opendatacommunities.org/id/metropolitan-district-council/wolverhampton","WWW.ARGOS.CO.UK",85.78,"LAC Transitions Team","5310","Equipment - Purchase","29/05/2019"
"Wolverhampton City Council","http://opendatacommunities.org/id/metropolitan-district-council/wolverhampton","WWW.ARGOS.CO.UK",77.5,"LAC Transitions Team","5310","Equipment - Purchase","29/05/2019"
"Wolverhampton City Council","http://opendatacommunities.org/id/metropolitan-district-council/wolverhampton","WWW.ARGOS.CO.UK",124.95,"LAC Transitions Team","5310","Equipment - Purchase","29/05/2019"
"Wolverhampton City Council","http://opendatacommunities.org/id/metropolitan-district-council/wolverhampton","WWW.ARGOS.CO.UK",53.28,"LAC Transitions Team","5310","Equipment - Purchase","29/05/2019"
"Wolverhampton City Council","http://opendatacommunities.org/id/metropolitan-district-council/wolverhampton","WWW.ARGOS.CO.UK",87.48,"LAC Transitions Team","5310","Equipment - Purchase","29/05/2019"
"Wolverhampton City Council","http://opendatacommunities.org/id/metropolitan-district-council/wolverhampton","ETSY.COM - EVERYTHINGF",9.99,"Citizenship, Language & Learning","5699","Equipment - Purchase","29/05/2019"
"Wolverhampton City Council","http://opendatacommunities.org/id/metropolitan-district-council/wolverhampton","Amazon.co.uk MN2GC3944",75.22,"Citizenship, Language & Learning","5969","Equipment - Purchase","29/05/2019"
"Wolverhampton City Council","http://opendatacommunities.org/id/metropolitan-district-council/wolverhampton","NATWEST BANK",200,"NRPF","6011","No Recourse to Public Funds","29/05/2019"
"Wolverhampton City Council","http://opendatacommunities.org/id/metropolitan-district-council/wolverhampton","000002200500000",150,"Childrens with Disabilities Team","6011","No Recourse to Public Funds","29/05/2019"
"Wolverhampton City Council","http://opendatacommunities.org/id/metropolitan-district-council/wolverhampton","000002200500000",250,"Childrens with Disabilities Team","6011","No Recourse to Public Funds","29/05/2019"
"Wolverhampton City Council","http://opendatacommunities.org/id/metropolitan-district-council/wolverhampton","000002200500000",250,"CIN/CP Social Work Unit - Area 6","6011","Financial Assistance In Exceptional Circ","29/05/2019"
"Wolverhampton City Council","http://opendatacommunities.org/id/metropolitan-district-council/wolverhampton","FAMILY LINKS",236.67,"Fostering Team & Allowances","8398","Services - Supplies & Services to users","29/05/2019"
"Wolverhampton City Council","http://opendatacommunities.org/id/metropolitan-district-council/wolverhampton","Virgin Trains",154.05,"Fostering Team","4112","Public Transport","29/05/2019"
"Wolverhampton City Council","http://opendatacommunities.org/id/metropolitan-district-council/wolverhampton","PARKBEE LIMITED",20.8,"Mayoral Expenses","7523","Car Allowances","29/05/2019"
"Wolverhampton City Council","http://opendatacommunities.org/id/metropolitan-district-council/wolverhampton","WEST MID TRAVEL",249.35,"Youth Offending Team","4131","Public Transport","29/05/2019"
"Wolverhampton City Council","http://opendatacommunities.org/id/metropolitan-district-council/wolverhampton","W HAMPTON1797",27.12,"Cemeteries","5211","Materials","29/05/2019"
"Wolverhampton City Council","http://opendatacommunities.org/id/metropolitan-district-council/wolverhampton","COMPANIES HOUSE",12.5,"Legal Services","9399","Services - Fees and Charges","29/05/2019"
"Wolverhampton City Council","http://opendatacommunities.org/id/metropolitan-district-council/wolverhampton","CITY OF WOLVERHAMPTON",33.33,"Legal Services","9399","Services - Fees and Charges","29/05/2019"
"Wolverhampton City Council","http://opendatacommunities.org/id/metropolitan-district-council/wolverhampton","Amazon.co.uk MN5TH7994",3.99,"Children & Young People Support Costs","5969","Equipment - Purchase","29/05/2019"
"Wolverhampton City Council","http://opendatacommunities.org/id/metropolitan-district-council/wolverhampton","Trainline",49.4,"Wolverhampton Indoor and Open Market","4112","Public Transport","29/05/2019"
"Wolverhampton City Council","http://opendatacommunities.org/id/metropolitan-district-council/wolverhampton","WWW.WOLVERHAMPTON.GOV.",76.54,"LAC Transitions Team","9399","Client Allowances","29/05/2019"
"Wolverhampton City Council","http://opendatacommunities.org/id/metropolitan-district-council/wolverhampton","POST OFFICE COUNTER",7.4,"Looked After Team 2","9402","Comms - Postage","29/05/2019"
"Wolverhampton City Council","http://opendatacommunities.org/id/metropolitan-district-council/wolverhampton","WP-CENTRAL TAXIS L",51.6,"LAC Team","4121","Client Transport","29/05/2019"
"Wolverhampton City Council","http://opendatacommunities.org/id/metropolitan-district-council/wolverhampton","WP-CENTRAL TAXIS L",63,"Looked After Team 2","4121","Client Transport","29/05/2019"
"Wolverhampton City Council","http://opendatacommunities.org/id/metropolitan-district-council/wolverhampton","J VAN VLIET BIRMINGHAM",109.79,"Creative Studies Delivery Area","5399","Materials for resale","29/05/2019"
"Wolverhampton City Council","http://opendatacommunities.org/id/metropolitan-district-council/wolverhampton","HORNERSHEARING.COM",166.67,"Northicote Farm","5251","Equipment - Purchase","29/05/2019"
"Wolverhampton City Council","http://opendatacommunities.org/id/metropolitan-district-council/wolverhampton","HORNERSHEARING.COM",167.12,"Northicote Farm","5251","Equipment - Purchase","29/05/2019"
"Wolverhampton City Council","http://opendatacommunities.org/id/metropolitan-district-council/wolverhampton","HORNERSHEARING.COM",249.17,"Northicote Farm","5251","Equipment - Purchase","29/05/2019"
"Wolverhampton City Council","http://opendatacommunities.org/id/metropolitan-district-council/wolverhampton","ASDA GROCERIES ONLINE",44.6,"Bradley Resource Centre","5411","Provisions (Not for resale)","28/05/2019"
"Wolverhampton City Council","http://opendatacommunities.org/id/metropolitan-district-council/wolverhampton","AMZNMktplace",48.38,"Service Director Disab & Mental Health","5999","Equipment - Purchase","28/05/2019"
"Wolverhampton City Council","http://opendatacommunities.org/id/metropolitan-district-council/wolverhampton","LOYD 37 CHURCH STREET",40,"EIP Locality 8","6011","Grant Payments","27/05/2019"
"Wolverhampton City Council","http://opendatacommunities.org/id/metropolitan-district-council/wolverhampton","WWW.ICELAND.CO.UK",44.25,"Bradley Resource Centre","5411","Provisions (Not for resale)","27/05/2019"
"Wolverhampton City Council","http://opendatacommunities.org/id/metropolitan-district-council/wolverhampton","ASDA GROCERIES ONLINE",205.99,"Bradley Resource Centre","5411","Provisions (Not for resale)","27/05/2019"
"Wolverhampton City Council","http://opendatacommunities.org/id/metropolitan-district-council/wolverhampton","WWW.WMCA.CO.UK",56.5,"IMPACT","9399","Services - Fees and Charges","27/05/2019"
"Wolverhampton City Council","http://opendatacommunities.org/id/metropolitan-district-council/wolverhampton","ASDA GROCERIES ONLINE",69.98,"Ernest Bold Court","5411","Provisions (Not for resale)","27/05/2019"
"Wolverhampton City Council","http://opendatacommunities.org/id/metropolitan-district-council/wolverhampton","SUBWAY",5.69,"Youth Offending Team","5812","Educ Trips, Holidays, Outings, Activity","27/05/2019"
"Wolverhampton City Council","http://opendatacommunities.org/id/metropolitan-district-council/wolverhampton","PREMIER INN",-19,"Regional Adoption Agency","3811","Accommodation Costs","27/05/2019"
"Wolverhampton City Council","http://opendatacommunities.org/id/metropolitan-district-council/wolverhampton","AMZNMKTPLACE AMAZON.CO",14.12,"Regional Adoption Agency","5999","Stationery","27/05/2019"
"Wolverhampton City Council","http://opendatacommunities.org/id/metropolitan-district-council/wolverhampton","AMZNMktplace",28.97,"Regional Adoption Agency","5999","Stationery","27/05/2019"
"Wolverhampton City Council","http://opendatacommunities.org/id/metropolitan-district-council/wolverhampton","CAWTHRAY'S",96,"Towers Outdoor Education Centre","7251","Equipment - Purchase","27/05/2019"
"Wolverhampton City Council","http://opendatacommunities.org/id/metropolitan-district-council/wolverhampton","TEX MEADOWVALEGAR",91.41,"Towers Outdoor Education Centre","5541","Equipment - Purchase","27/05/2019"
"Wolverhampton City Council","http://opendatacommunities.org/id/metropolitan-district-council/wolverhampton","SPAR",124.48,"Towers Outdoor Education Centre","5411","Provisions (Not for resale)","27/05/2019"
"Wolverhampton City Council","http://opendatacommunities.org/id/metropolitan-district-council/wolverhampton","O E METCALFE",149.94,"Towers Outdoor Education Centre","5499","Provisions (Not for resale)","27/05/2019"
"Wolverhampton City Council","http://opendatacommunities.org/id/metropolitan-district-council/wolverhampton","CHEMSOL CYMRU LTD",191.89,"Towers Outdoor Education Centre","5199","Fixtures and Fittings - Purchases","27/05/2019"
"Wolverhampton City Council","http://opendatacommunities.org/id/metropolitan-district-council/wolverhampton","BIOTECTS LTD",36.3,"Business Support Services","5111","Equipment - Purchase","27/05/2019"
"Wolverhampton City Council","http://opendatacommunities.org/id/metropolitan-district-council/wolverhampton","MARKS&SPENCER PLC SACA",32.28,"Business Support Services","5411","Provisions (Not for resale)","27/05/2019"
"Wolverhampton City Council","http://opendatacommunities.org/id/metropolitan-district-council/wolverhampton","Trainline",34.34,"Healthy Life Expectancy","4112","Public Transport","27/05/2019"
"Wolverhampton City Council","http://opendatacommunities.org/id/metropolitan-district-council/wolverhampton","PREMIER INN",252,"LAC Team","3811","Accommodation Costs","27/05/2019"
"Wolverhampton City Council","http://opendatacommunities.org/id/metropolitan-district-council/wolverhampton","CITY OF WOLVERHAMPTON",27,"LAC Team","9399","Services - Fees and Charges","27/05/2019"
"Wolverhampton City Council","http://opendatacommunities.org/id/metropolitan-district-council/wolverhampton","HILTON",93.6,"LAC Transitions Team","3504","Conference Expenses","27/05/2019"
"Wolverhampton City Council","http://opendatacommunities.org/id/metropolitan-district-council/wolverhampton","Trainline",148.81,"LAC Transitions Team","4112","Public Transport","27/05/2019"
"Wolverhampton City Council","http://opendatacommunities.org/id/metropolitan-district-council/wolverhampton","AMZNMKTPLACE AMAZON.CO",74.99,"Intensive Family Support Team","5999","Equipment - Purchase","27/05/2019"
"Wolverhampton City Council","http://opendatacommunities.org/id/metropolitan-district-council/wolverhampton","ASDA GROCERIES ONLINE",-4.27,"Upper Pendeford Farm Childrens Home","5411","Provisions (Not for resale)","27/05/2019"
"Wolverhampton City Council","http://opendatacommunities.org/id/metropolitan-district-council/wolverhampton","ASDA GROCERIES ONLINE",235.99,"Upper Pendeford Farm Childrens Home","5411","Provisions (Not for resale)","27/05/2019"
"Wolverhampton City Council","http://opendatacommunities.org/id/metropolitan-district-council/wolverhampton","HM PASSPORT OFFICE",58.5,"Looked After Team 2","9399","Financial Assistance In Exceptional Circ","27/05/2019"
"Wolverhampton City Council","http://opendatacommunities.org/id/metropolitan-district-council/wolverhampton","Amazon Prime",-0.82,"Mental Health Assessment & Care Mgmt","5968","Subscriptions","27/05/2019"
"Wolverhampton City Council","http://opendatacommunities.org/id/metropolitan-district-council/wolverhampton","Amazon.co.uk MN4ZU6224",11.67,"Global Budgets","5969","Equipment - Purchase","27/05/2019"
"Wolverhampton City Council","http://opendatacommunities.org/id/metropolitan-district-council/wolverhampton","Amazon.co.uk MN2TK7S94",11.67,"Global Budgets","5969","Equipment - Purchase","27/05/2019"
"Wolverhampton City Council","http://opendatacommunities.org/id/metropolitan-district-council/wolverhampton","Amazon.co.uk MN0Q79SZ4",11.67,"Global Budgets","5969","Equipment - Purchase","27/05/2019"
"Wolverhampton City Council","http://opendatacommunities.org/id/metropolitan-district-council/wolverhampton","Amazon.co.uk MN95W7284",11.67,"Global Budgets","5969","Equipment - Purchase","27/05/2019"
"Wolverhampton City Council","http://opendatacommunities.org/id/metropolitan-district-council/wolverhampton","Amazon.co.uk MN89B82S4",11.67,"Global Budgets","5969","Equipment - Purchase","27/05/2019"
"Wolverhampton City Council","http://opendatacommunities.org/id/metropolitan-district-council/wolverhampton","Amazon.co.uk MN8Y96SL4",11.67,"Global Budgets","5969","Equipment - Purchase","27/05/2019"
"Wolverhampton City Council","http://opendatacommunities.org/id/metropolitan-district-council/wolverhampton","Amazon.co.uk MN8Q80SF4",11.67,"Global Budgets","5969","Equipment - Purchase","27/05/2019"
"Wolverhampton City Council","http://opendatacommunities.org/id/metropolitan-district-council/wolverhampton","Amazon Prime MN8PA5SY4",0.82,"Children & Young People Support Costs","5968","Subscriptions","27/05/2019"
"Wolverhampton City Council","http://opendatacommunities.org/id/metropolitan-district-council/wolverhampton","WM MORRISONS STORE",65.66,"Ernest Bold Court","5411","Provisions (Not for resale)","27/05/2019"
"Wolverhampton City Council","http://opendatacommunities.org/id/metropolitan-district-council/wolverhampton","1ST CHOICE WINDOWS DOO",500,"CIN/CP Social Work Unit - Area 7","1799","Section 17","27/05/2019"
"Wolverhampton City Council","http://opendatacommunities.org/id/metropolitan-district-council/wolverhampton","WWW.CORAM.ORG.UK",62.25,"LAC Admin Team","8398","Services - Supplies & Services to users","27/05/2019"
"Wolverhampton City Council","http://opendatacommunities.org/id/metropolitan-district-council/wolverhampton","Amazon.co.uk MN6XA6SO4",11.67,"Global Budgets","5969","Equipment - Purchase","27/05/2019"
"Wolverhampton City Council","http://opendatacommunities.org/id/metropolitan-district-council/wolverhampton","Amazon.co.uk MN59J02X4",11.67,"Global Budgets","5969","Equipment - Purchase","27/05/2019"
"Wolverhampton City Council","http://opendatacommunities.org/id/metropolitan-district-council/wolverhampton","Amazon.co.uk MN49H52V4",11.67,"Global Budgets","5969","Equipment - Purchase","27/05/2019"
"Wolverhampton City Council","http://opendatacommunities.org/id/metropolitan-district-council/wolverhampton","Amazon.co.uk MN4321SV4",11.67,"Global Budgets","5969","Equipment - Purchase","27/05/2019"
"Wolverhampton City Council","http://opendatacommunities.org/id/metropolitan-district-council/wolverhampton","Amazon.co.uk MN39H9254",11.67,"Global Budgets","5969","Equipment - Purchase","27/05/2019"
"Wolverhampton City Council","http://opendatacommunities.org/id/metropolitan-district-council/wolverhampton","Amazon.co.uk MN1Y92SV4",11.67,"Global Budgets","5969","Equipment - Purchase","27/05/2019"
"Wolverhampton City Council","http://opendatacommunities.org/id/metropolitan-district-council/wolverhampton","Amazon.co.uk MN09042Y4",11.67,"Global Budgets","5969","Equipment - Purchase","27/05/2019"
"Wolverhampton City Council","http://opendatacommunities.org/id/metropolitan-district-council/wolverhampton","123 REG R/T",23.98,"Audience Development","5968","Subscriptions","27/05/2019"
"Wolverhampton City Council","http://opendatacommunities.org/id/metropolitan-district-council/wolverhampton","POST OFFICE COUNTER",8.7,"Looked After Team 2","9402","Comms - Postage","27/05/2019"
"Wolverhampton City Council","http://opendatacommunities.org/id/metropolitan-district-council/wolverhampton","ASDA GROCERIES ONLINE",5,"Ernest Bold Court","5411","Provisions (Not for resale)","27/05/2019"
"Wolverhampton City Council","http://opendatacommunities.org/id/metropolitan-district-council/wolverhampton","DVLA VEHICLE TAX",145.5,"Trading Standards","9399","Services - Fees and Charges","27/05/2019"
"Wolverhampton City Council","http://opendatacommunities.org/id/metropolitan-district-council/wolverhampton","WOLVERHAMPTON RACECOUR",153.9,"Delivery & OCE Development","7999","Educ Trips, Holidays, Outings, Activity","27/05/2019"
"Wolverhampton City Council","http://opendatacommunities.org/id/metropolitan-district-council/wolverhampton","Trainline",-31,"Research & Development","4112","Public Transport","24/05/2019"
"Wolverhampton City Council","http://opendatacommunities.org/id/metropolitan-district-council/wolverhampton","Trainline.com",-14.8,"Court Team","4112","Public Transport","24/05/2019"
"Wolverhampton City Council","http://opendatacommunities.org/id/metropolitan-district-council/wolverhampton","London Northwestern Ra",18.9,"Court Team","4112","Public Transport","24/05/2019"
"Wolverhampton City Council","http://opendatacommunities.org/id/metropolitan-district-council/wolverhampton","HM PASSPORT OFFICE",49,"Childrens with Disabilities Team","9399","Section 17","24/05/2019"
"Wolverhampton City Council","http://opendatacommunities.org/id/metropolitan-district-council/wolverhampton","HM PASSPORT OFFICE",62.92,"LAC Transitions Team","9399","Client Allowances","24/05/2019"
"Wolverhampton City Council","http://opendatacommunities.org/id/metropolitan-district-council/wolverhampton","AMZNMKTPLACE AMAZON.CO",23.32,"Regional Adoption Agency","5999","Equipment - Purchase","24/05/2019"
"Wolverhampton City Council","http://opendatacommunities.org/id/metropolitan-district-council/wolverhampton","AMZN Mktp UK MN52N1D84",7.47,"Regional Adoption Agency","5942","Hospitality","24/05/2019"
"Wolverhampton City Council","http://opendatacommunities.org/id/metropolitan-district-council/wolverhampton","AMZN Mktp UK MN3193DP4",7.44,"Regional Adoption Agency","5942","Stationery","24/05/2019"
"Wolverhampton City Council","http://opendatacommunities.org/id/metropolitan-district-council/wolverhampton","GOOGLE  ADS9680351324",500,"Communications & Marketing - General","5968","Subscriptions","24/05/2019"
"Wolverhampton City Council","http://opendatacommunities.org/id/metropolitan-district-council/wolverhampton","POST OFFICE COUNTER",20,"Public Health Support Costs","9402","Educ Trips, Holidays, Outings, Activity","24/05/2019"
"Wolverhampton City Council","http://opendatacommunities.org/id/metropolitan-district-council/wolverhampton","POST OFFICE COUNTER",11,"Out of City Placements","9402","Comms - Postage","24/05/2019"
"Wolverhampton City Council","http://opendatacommunities.org/id/metropolitan-district-council/wolverhampton","POST OFFICE COUNTER",8.7,"LAC Team","9402","Comms - Postage","24/05/2019"
"Wolverhampton City Council","http://opendatacommunities.org/id/metropolitan-district-council/wolverhampton","WWW.UCAS.COM",125,"Central Costs","8220","Training Expenses","24/05/2019"
"Wolverhampton City Council","http://opendatacommunities.org/id/metropolitan-district-council/wolverhampton","POST OFFICE COUNTER",7.4,"Looked After Team 2","9402","Comms - Postage","24/05/2019"
"Wolverhampton City Council","http://opendatacommunities.org/id/metropolitan-district-council/wolverhampton","HOME BARGAINS WOLVERHA",2.49,"LAC Transitions Team","5251","Client Allowances","24/05/2019"
"Wolverhampton City Council","http://opendatacommunities.org/id/metropolitan-district-council/wolverhampton","TVLICENSING.CO.UK",154.5,"LAC Transitions Team","7392","Client Allowances","24/05/2019"
"Wolverhampton City Council","http://opendatacommunities.org/id/metropolitan-district-council/wolverhampton","B.com 178520-8A974 Day",98.33,"CIN/CP Social Work Unit - Area 2","7011","Section 17","24/05/2019"
"Wolverhampton City Council","http://opendatacommunities.org/id/metropolitan-district-council/wolverhampton","AMZN MKTP UK MN1IN5DH4",20.79,"Blakenhall Resource Centre","5942","Materials","24/05/2019"
"Wolverhampton City Council","http://opendatacommunities.org/id/metropolitan-district-council/wolverhampton","AMZNMKTPLACE AMAZON.CO",51.57,"Community Enablement","5999","Cleaning Supplies and Materials","24/05/2019"
"Wolverhampton City Council","http://opendatacommunities.org/id/metropolitan-district-council/wolverhampton","SAINSBURYS 2040",11.75,"Duke Street Bungalows","5411","R4010","24/05/2019"
"Wolverhampton City Council","http://opendatacommunities.org/id/metropolitan-district-council/wolverhampton","Amazon.co.uk MN15M6S74",11.67,"Global Budgets","5969","Equipment - Purchase","24/05/2019"
"Wolverhampton City Council","http://opendatacommunities.org/id/metropolitan-district-council/wolverhampton","WWW.CARESHOP.CO.UK",57.66,"Ernest Bold Court","5999","Materials","24/05/2019"
"Wolverhampton City Council","http://opendatacommunities.org/id/metropolitan-district-council/wolverhampton","TRAVELODGE",95.42,"SEN Early Years Team","3615","Training Expenses","24/05/2019"
"Wolverhampton City Council","http://opendatacommunities.org/id/metropolitan-district-council/wolverhampton","WWW.SHOWDATA.COM",101.5,"SEN Early Years Team","5999","Training Expenses","24/05/2019"
"Wolverhampton City Council","http://opendatacommunities.org/id/metropolitan-district-council/wolverhampton","Trainline",131.97,"SEN Early Years Team","4112","Public Transport","24/05/2019"
"Wolverhampton City Council","http://opendatacommunities.org/id/metropolitan-district-council/wolverhampton","DOWNS SYNDROME ASS",240,"SEN Early Years Team","8398","Training Expenses","24/05/2019"
"Wolverhampton City Council","http://opendatacommunities.org/id/metropolitan-district-council/wolverhampton","PAYPAL  CARVERS",128.48,"Northicote Farm","5085","Equipment - Purchase","24/05/2019"
"Wolverhampton City Council","http://opendatacommunities.org/id/metropolitan-district-council/wolverhampton","LOYD 37 CHURCH STREET",60,"EIP Locality 5","6011","Grant Payments","23/05/2019"
"Wolverhampton City Council","http://opendatacommunities.org/id/metropolitan-district-council/wolverhampton","B&M RETAIL",39.98,"Children & Young People Support Costs","5310","Client Allowances","23/05/2019"
"Wolverhampton City Council","http://opendatacommunities.org/id/metropolitan-district-council/wolverhampton","THE COAL AUTHORITY",82.9,"Capital Programme Team","9399","Services - Fees and Charges","23/05/2019"
"Wolverhampton City Council","http://opendatacommunities.org/id/metropolitan-district-council/wolverhampton","THE COAL AUTHORITY",414.5,"HRA General","9399","Services - Fees and Charges","23/05/2019"
"Wolverhampton City Council","http://opendatacommunities.org/id/metropolitan-district-council/wolverhampton","ASDA GROCERIES ONLINE",-8.61,"Bradley Resource Centre","5411","Provisions (Not for resale)","23/05/2019"
"Wolverhampton City Council","http://opendatacommunities.org/id/metropolitan-district-council/wolverhampton","ASDA GROCERIES ONLINE",98.57,"Bradley Resource Centre","5411","Provisions (Not for resale)","23/05/2019"
"Wolverhampton City Council","http://opendatacommunities.org/id/metropolitan-district-council/wolverhampton","WWW.GOV.UK",10,"Revenues","8999","Services - Professional Fees","23/05/2019"
"Wolverhampton City Council","http://opendatacommunities.org/id/metropolitan-district-council/wolverhampton","Cross Country Trains",28.45,"NRPF","4112","No Recourse to Public Funds","23/05/2019"
"Wolverhampton City Council","http://opendatacommunities.org/id/metropolitan-district-council/wolverhampton","NATWEST BANK",400,"NRPF","6011","No Recourse to Public Funds","23/05/2019"
"Wolverhampton City Council","http://opendatacommunities.org/id/metropolitan-district-council/wolverhampton","COMMERCIAL WASHROOMS",77.8,"Towers Outdoor Education Centre","5712","Fixtures and Fittings - Purchases","23/05/2019"
"Wolverhampton City Council","http://opendatacommunities.org/id/metropolitan-district-council/wolverhampton","CLINTONS 45",10,"Wholly Owned Company - Operations","5947","Equipment - Purchase","23/05/2019"
"Wolverhampton City Council","http://opendatacommunities.org/id/metropolitan-district-council/wolverhampton","FACEBK  ESD2XMW9R2",500,"Communications & Marketing - General","7311","Marketing \ Non-staff advertising","23/05/2019"
"Wolverhampton City Council","http://opendatacommunities.org/id/metropolitan-district-council/wolverhampton","Trainline",78.55,"LAC Transitions Team","4112","Public Transport","23/05/2019"
"Wolverhampton City Council","http://opendatacommunities.org/id/metropolitan-district-council/wolverhampton","POST OFFICE COUNTER",11,"LAC Team","9402","Comms - Postage","23/05/2019"
"Wolverhampton City Council","http://opendatacommunities.org/id/metropolitan-district-council/wolverhampton","AMZNMktplace",44.12,"Strategic ICTS (ICT Serv Budget)","5999","Equipment - Purchase","23/05/2019"
"Wolverhampton City Council","http://opendatacommunities.org/id/metropolitan-district-council/wolverhampton","WWW.CHANGEPEOPLE.CO.UK",57,"Intensive Family Support Team","8398","Services - Supplies & Services to users","23/05/2019"
"Wolverhampton City Council","http://opendatacommunities.org/id/metropolitan-district-council/wolverhampton","AMZNMktplace",7.57,"Intensive Family Support Team","5999","Equipment - Purchase","23/05/2019"
"Wolverhampton City Council","http://opendatacommunities.org/id/metropolitan-district-council/wolverhampton","OFFICIALRECORDCOUK",35.98,"Looked After Team 2","7392","Financial Assistance In Exceptional Circ","23/05/2019"
"Wolverhampton City Council","http://opendatacommunities.org/id/metropolitan-district-council/wolverhampton","CITY DIRECT",40,"Looked After Team 2","8299","Financial Assistance In Exceptional Circ","23/05/2019"
"Wolverhampton City Council","http://opendatacommunities.org/id/metropolitan-district-council/wolverhampton","PARKIN FABRICS LIM",45.22,"Creative Studies Delivery Area","5949","Materials","23/05/2019"
"Wolverhampton City Council","http://opendatacommunities.org/id/metropolitan-district-council/wolverhampton","PAYPAL  MES LTD",170,"Music Support Team","8211","Training Expenses","23/05/2019"
"Wolverhampton City Council","http://opendatacommunities.org/id/metropolitan-district-council/wolverhampton","WILKO RETAIL LIMIT",1.87,"Education And Access","5722","Equipment - Purchase","23/05/2019"
"Wolverhampton City Council","http://opendatacommunities.org/id/metropolitan-district-council/wolverhampton","POUNDLAND LTD 1463",1.67,"Education And Access","5310","Equipment - Purchase","23/05/2019"
"Wolverhampton City Council","http://opendatacommunities.org/id/metropolitan-district-council/wolverhampton","www.speedyservices.com",300,"Music Support Team","7394","Equipment - Purchase","23/05/2019"
"Wolverhampton City Council","http://opendatacommunities.org/id/metropolitan-district-council/wolverhampton","PAYPAL  HORNER SHEA",90.95,"Northicote Farm","5099","Equipment - Purchase","23/05/2019"
"Wolverhampton City Council","http://opendatacommunities.org/id/metropolitan-district-council/wolverhampton","AMZNMktplace",386.91,"Trading Standards","5999","Equipment - Purchase","23/05/2019"
"Wolverhampton City Council","http://opendatacommunities.org/id/metropolitan-district-council/wolverhampton","UNTOUCHABLES",5.16,"Education Catering - General Overheads","5231","Materials","23/05/2019"
"Wolverhampton City Council","http://opendatacommunities.org/id/metropolitan-district-council/wolverhampton","POUNDSTRETCHER 703",42.04,"LAC Transitions Team","5331","Client Allowances","22/05/2019"
"Wolverhampton City Council","http://opendatacommunities.org/id/metropolitan-district-council/wolverhampton","SAINSBURYS SACAT (2340",10.35,"Key to Inspiration","5411","Hospitality","22/05/2019"
"Wolverhampton City Council","http://opendatacommunities.org/id/metropolitan-district-council/wolverhampton","F A GILL LTD",40.35,"Bradley Resource Centre","5499","Catering","22/05/2019"
"Wolverhampton City Council","http://opendatacommunities.org/id/metropolitan-district-council/wolverhampton","WWW.ICELAND.CO.UK",40.25,"Bradley Resource Centre","5411","Provisions (Not for resale)","22/05/2019"
"Wolverhampton City Council","http://opendatacommunities.org/id/metropolitan-district-council/wolverhampton","WM MORRISON FOOD.COM",107.9,"Discretionary Fund","5411","Materials","22/05/2019"
"Wolverhampton City Council","http://opendatacommunities.org/id/metropolitan-district-council/wolverhampton","Virgin Trains",184,"Quality Assurance & Policies","4112","Public Transport","22/05/2019"
"Wolverhampton City Council","http://opendatacommunities.org/id/metropolitan-district-council/wolverhampton","Virgin Trains",184,"Quality Assurance & Policies","4112","Public Transport","22/05/2019"
"Wolverhampton City Council","http://opendatacommunities.org/id/metropolitan-district-council/wolverhampton","B&M RETAIL LTD",22.98,"Bradley Resource Centre","5310","Equipment - Purchase","22/05/2019"
"Wolverhampton City Council","http://opendatacommunities.org/id/metropolitan-district-council/wolverhampton","HOME BARGAINS",31.01,"Bradley Resource Centre","5251","Equipment - Purchase","22/05/2019"
"Wolverhampton City Council","http://opendatacommunities.org/id/metropolitan-district-council/wolverhampton","Trainline",89.12,"LAC Transitions Team","4112","Client Allowances","22/05/2019"
"Wolverhampton City Council","http://opendatacommunities.org/id/metropolitan-district-council/wolverhampton","TESCO STORES 5194",91.04,"Towers Outdoor Education Centre","5411","Provisions (Not for resale)","22/05/2019"
"Wolverhampton City Council","http://opendatacommunities.org/id/metropolitan-district-council/wolverhampton","Amazon.co.uk MN8ZJ56M4",18.32,"Towers Outdoor Education Centre","5969","Equipment - Purchase","22/05/2019"
"Wolverhampton City Council","http://opendatacommunities.org/id/metropolitan-district-council/wolverhampton","WWW.RED17.CO.UK",41.55,"Wholly Owned Company - Operations","2741","Publications","22/05/2019"
"Wolverhampton City Council","http://opendatacommunities.org/id/metropolitan-district-council/wolverhampton","WWW.TROPHYSTORE.CO.UK",211.87,"B-Safe","5947","Events","22/05/2019"
"Wolverhampton City Council","http://opendatacommunities.org/id/metropolitan-district-council/wolverhampton","Trainline",205.13,"Headstart Phase 3","4112","Public Transport","22/05/2019"
"Wolverhampton City Council","http://opendatacommunities.org/id/metropolitan-district-council/wolverhampton","HIGHSTREETVOUCHERS",70,"Headstart - Employability","8641","Educ Trips, Holidays, Outings, Activity","22/05/2019"
"Wolverhampton City Council","http://opendatacommunities.org/id/metropolitan-district-council/wolverhampton","WWW.THEWORKS.CO.UK",35,"Headstart - Employability","5310","Equipment - Purchase","22/05/2019"
"Wolverhampton City Council","http://opendatacommunities.org/id/metropolitan-district-council/wolverhampton","AMZN Mktp UK MN19B3QW4",29.89,"Bert Williams Leisure Centre","5942","Books","22/05/2019"
"Wolverhampton City Council","http://opendatacommunities.org/id/metropolitan-district-council/wolverhampton","NAMESCO",23.96,"Communications & Marketing - General","4816","Computing - Purchase of Software","22/05/2019"
"Wolverhampton City Council","http://opendatacommunities.org/id/metropolitan-district-council/wolverhampton","Trainline",23.76,"LAC Transitions Team","4112","Client Allowances","22/05/2019"
"Wolverhampton City Council","http://opendatacommunities.org/id/metropolitan-district-council/wolverhampton","WEST MID TRAVEL",52.35,"Youth Offending Team","4131","Public Transport","22/05/2019"
"Wolverhampton City Council","http://opendatacommunities.org/id/metropolitan-district-council/wolverhampton","SCREWFIX WOLVERHAM",93.02,"Cemeteries","5211","Materials","22/05/2019"
"Wolverhampton City Council","http://opendatacommunities.org/id/metropolitan-district-council/wolverhampton","Trainline",74.07,"Healthy Life Expectancy","4112","Public Transport","22/05/2019"
"Wolverhampton City Council","http://opendatacommunities.org/id/metropolitan-district-council/wolverhampton","AMZN Mktp UK MN63I9QZ4",31.65,"Strategic ICTS (ICT Serv Budget)","5942","Computing - Purchase of Hardware","22/05/2019"
"Wolverhampton City Council","http://opendatacommunities.org/id/metropolitan-district-council/wolverhampton","AMZNMKTPLACE AMAZON.CO",21.65,"Strategic ICTS (ICT Serv Budget)","5999","Equipment - Purchase","22/05/2019"
"Wolverhampton City Council","http://opendatacommunities.org/id/metropolitan-district-council/wolverhampton","AMZNMKTPLACE AMAZON.CO",4.99,"Strategic ICTS (ICT Serv Budget)","5999","Equipment - Purchase","22/05/2019"
"Wolverhampton City Council","http://opendatacommunities.org/id/metropolitan-district-council/wolverhampton","AMZNMktplace",28.75,"Strategic ICTS (ICT Serv Budget)","5999","Equipment - Purchase","22/05/2019"
"Wolverhampton City Council","http://opendatacommunities.org/id/metropolitan-district-council/wolverhampton","HM PASSPORT OFFICE",63.5,"Looked After Team 2","9399","Financial Assistance In Exceptional Circ","22/05/2019"
"Wolverhampton City Council","http://opendatacommunities.org/id/metropolitan-district-council/wolverhampton","ARGOS RETAIL GROUP",5.99,"Shopmobility","5310","Equipment - Purchase","22/05/2019"
"Wolverhampton City Council","http://opendatacommunities.org/id/metropolitan-district-council/wolverhampton","WATERSTONES",100,"Wolverhampton Indoor and Open Market","5942","Books","22/05/2019"
"Wolverhampton City Council","http://opendatacommunities.org/id/metropolitan-district-council/wolverhampton","THE ENTERTAINER 15",20,"Wolverhampton Indoor and Open Market","5945","Equipment - Purchase","22/05/2019"
"Wolverhampton City Council","http://opendatacommunities.org/id/metropolitan-district-council/wolverhampton","CUMMINGS BROTHERS LOCK",30,"Culwell Street Depot","7399","R&M - Departmental planned (external)","22/05/2019"
"Wolverhampton City Council","http://opendatacommunities.org/id/metropolitan-district-council/wolverhampton","Amazon.co.uk MN82R3QM4",11.67,"Global Budgets","5969","Equipment - Purchase","22/05/2019"
"Wolverhampton City Council","http://opendatacommunities.org/id/metropolitan-district-council/wolverhampton","AMZNMktplace",13.55,"Service Director Disab & Mental Health","5999","Equipment - Purchase","22/05/2019"
"Wolverhampton City Council","http://opendatacommunities.org/id/metropolitan-district-council/wolverhampton","Amazon.co.uk MN8NO7Q24",11.67,"Global Budgets","5969","Equipment - Purchase","22/05/2019"
"Wolverhampton City Council","http://opendatacommunities.org/id/metropolitan-district-council/wolverhampton","Amazon.co.uk MN7J21QM4",11.67,"Global Budgets","5969","Equipment - Purchase","22/05/2019"
"Wolverhampton City Council","http://opendatacommunities.org/id/metropolitan-district-council/wolverhampton","Amazon.co.uk MN7JS3QQ4",11.67,"Global Budgets","5969","Equipment - Purchase","22/05/2019"
"Wolverhampton City Council","http://opendatacommunities.org/id/metropolitan-district-council/wolverhampton","AMZNMktplace",2.76,"Service Director Disab & Mental Health","5999","Equipment - Purchase","22/05/2019"
"Wolverhampton City Council","http://opendatacommunities.org/id/metropolitan-district-council/wolverhampton","AMZN Mktp UK MN1MC2QW4",16.26,"Service Director Disab & Mental Health","5942","Books","22/05/2019"
"Wolverhampton City Council","http://opendatacommunities.org/id/metropolitan-district-council/wolverhampton","Amazon.co.uk MN5JP8QK4",11.67,"Global Budgets","5969","Equipment - Purchase","22/05/2019"
"Wolverhampton City Council","http://opendatacommunities.org/id/metropolitan-district-council/wolverhampton","Amazon.co.uk MN5JP1QT4",11.67,"Global Budgets","5969","Equipment - Purchase","22/05/2019"
"Wolverhampton City Council","http://opendatacommunities.org/id/metropolitan-district-council/wolverhampton","Amazon.co.uk MN4JW8Q44",11.67,"Global Budgets","5969","Equipment - Purchase","22/05/2019"
"Wolverhampton City Council","http://opendatacommunities.org/id/metropolitan-district-council/wolverhampton","Amazon.co.uk MN2JZ0Q24",11.67,"Global Budgets","5969","Equipment - Purchase","22/05/2019"
"Wolverhampton City Council","http://opendatacommunities.org/id/metropolitan-district-council/wolverhampton","Amazon.co.uk MN7CV6QT4",11.67,"Global Budgets","5969","Equipment - Purchase","22/05/2019"
"Wolverhampton City Council","http://opendatacommunities.org/id/metropolitan-district-council/wolverhampton","Amazon.co.uk MN0JJ4QR4",11.67,"Global Budgets","5969","Equipment - Purchase","22/05/2019"
"Wolverhampton City Council","http://opendatacommunities.org/id/metropolitan-district-council/wolverhampton","POST OFFICE COUNTER",8.7,"Looked After Team 2","9402","Comms - Postage","22/05/2019"
"Wolverhampton City Council","http://opendatacommunities.org/id/metropolitan-district-council/wolverhampton","Amazon.co.uk MN5YF0QG4",55.99,"Legal Services","5969","Books","22/05/2019"
"Wolverhampton City Council","http://opendatacommunities.org/id/metropolitan-district-council/wolverhampton","WOLVERHAMPTON T/O",37.2,"Strategic ICTS (ICT Serv Budget)","4112","Public Transport","21/05/2019"
"Wolverhampton City Council","http://opendatacommunities.org/id/metropolitan-district-council/wolverhampton","CardtronicsUK",183.33,"LAC Transitions Team","6011","Financial Assistance In Exceptional Circ","21/05/2019"
"Wolverhampton City Council","http://opendatacommunities.org/id/metropolitan-district-council/wolverhampton","ROYAL CARPETS",125,"LAC Transitions Team","5713","Equipment - Purchase","21/05/2019"
"Wolverhampton City Council","http://opendatacommunities.org/id/metropolitan-district-council/wolverhampton","HOMEBASE",475.15,"Adult Services - North","5200","Equipment - Purchase","21/05/2019"
"Wolverhampton City Council","http://opendatacommunities.org/id/metropolitan-district-council/wolverhampton","JAMES LISTER & SONS LT",7.5,"Street Lighting Maintenance","5085","Equipment - Purchase","21/05/2019"
"Wolverhampton City Council","http://opendatacommunities.org/id/metropolitan-district-council/wolverhampton","HOME BARGAINS WOLVERHA",15.09,"LAC Transitions Team","5251","Client Allowances","21/05/2019"
"Wolverhampton City Council","http://opendatacommunities.org/id/metropolitan-district-council/wolverhampton","BARCLAYS",220,"Childrens with Disabilities Team","6011","No Recourse to Public Funds","21/05/2019"
"Wolverhampton City Council","http://opendatacommunities.org/id/metropolitan-district-council/wolverhampton","WWW.MIDGEBUSTERS.COM",82.47,"Towers Outdoor Education Centre","7342","Fixtures and Fittings - Purchases","21/05/2019"
"Wolverhampton City Council","http://opendatacommunities.org/id/metropolitan-district-council/wolverhampton","TESCO STORES 6667",4.6,"Towers Outdoor Education Centre","5411","Provisions (Not for resale)","21/05/2019"
"Wolverhampton City Council","http://opendatacommunities.org/id/metropolitan-district-council/wolverhampton","FARNELL",9.11,"Aldersley Leisure Village","5065","Equipment - R & M","21/05/2019"
"Wolverhampton City Council","http://opendatacommunities.org/id/metropolitan-district-council/wolverhampton","SAINSBURYS SACAT (2340",10.85,"Mayoral Expenses","5411","Hospitality","21/05/2019"
"Wolverhampton City Council","http://opendatacommunities.org/id/metropolitan-district-council/wolverhampton","STEADYMOUSE",34.82,"Youth Offending Team","5192","Computing - Purchase of Software","21/05/2019"
"Wolverhampton City Council","http://opendatacommunities.org/id/metropolitan-district-council/wolverhampton","POST OFFICE COUNTER",6.6,"LAC Transitions Team","9402","Comms - Postage","21/05/2019"
"Wolverhampton City Council","http://opendatacommunities.org/id/metropolitan-district-council/wolverhampton","VIDEKONLINE.CO.UK",78.75,"Strategic ICTS (ICT Serv Budget)","5722","Equipment - Purchase","21/05/2019"
"Wolverhampton City Council","http://opendatacommunities.org/id/metropolitan-district-council/wolverhampton","AMZN Mktp UK MN47L58I4",18.97,"Strategic ICTS (ICT Serv Budget)","5942","Computing - Purchase of Hardware","21/05/2019"
"Wolverhampton City Council","http://opendatacommunities.org/id/metropolitan-district-council/wolverhampton","PREMIER INN",-99.96,"Caretakers Community Centre","3811","Services - Supplies & Services to users","21/05/2019"
"Wolverhampton City Council","http://opendatacommunities.org/id/metropolitan-district-council/wolverhampton","Amazon Prime MN1UY0874",6.66,"Central Baths","5968","Subscriptions","21/05/2019"
"Wolverhampton City Council","http://opendatacommunities.org/id/metropolitan-district-council/wolverhampton","AMZNMktplace",16.25,"Service Director Disab & Mental Health","5999","Equipment - Purchase","21/05/2019"
"Wolverhampton City Council","http://opendatacommunities.org/id/metropolitan-district-council/wolverhampton","AMZNMktplace",2.72,"Service Director Disab & Mental Health","5999","Equipment - Purchase","21/05/2019"
"Wolverhampton City Council","http://opendatacommunities.org/id/metropolitan-district-council/wolverhampton","UNITED CARPETS BEDS",139,"EIP Locality 5","5713","Grant Payments","21/05/2019"
"Wolverhampton City Council","http://opendatacommunities.org/id/metropolitan-district-council/wolverhampton","UNITED CARPETS BEDS",139,"EIP Locality 5","5713","Grant Payments","21/05/2019"
"Wolverhampton City Council","http://opendatacommunities.org/id/metropolitan-district-council/wolverhampton","AMZ Shop Attack",-7.75,"Creative Studies Delivery Area","5999","Equipment - Purchase","21/05/2019"
"Wolverhampton City Council","http://opendatacommunities.org/id/metropolitan-district-council/wolverhampton","ASDA GROCERIES ONLINE",35.37,"Creative Studies Delivery Area","5411","Provisions (Not for resale)","21/05/2019"
"Wolverhampton City Council","http://opendatacommunities.org/id/metropolitan-district-council/wolverhampton","AMZNMktplace",31.32,"Global Budgets","5999","Books","21/05/2019"
"Wolverhampton City Council","http://opendatacommunities.org/id/metropolitan-district-council/wolverhampton","WWW.ICELAND.CO.UK",50.8,"Bradley Resource Centre","5411","Provisions (Not for resale)","21/05/2019"
"Wolverhampton City Council","http://opendatacommunities.org/id/metropolitan-district-council/wolverhampton","ASDA GROCERIES ONLINE",-0.02,"Ernest Bold Court","5411","Provisions (Not for resale)","21/05/2019"
"Wolverhampton City Council","http://opendatacommunities.org/id/metropolitan-district-council/wolverhampton","ASDA GROCERIES ONLINE",69.09,"Ernest Bold Court","5411","Provisions (Not for resale)","21/05/2019"
"Wolverhampton City Council","http://opendatacommunities.org/id/metropolitan-district-council/wolverhampton","BLITZ RECYCLING LTD",100,"CIN/CP Social Work Unit - Area 4","7394","Section 17","21/05/2019"
"Wolverhampton City Council","http://opendatacommunities.org/id/metropolitan-district-council/wolverhampton","Amazon.co.uk MN9W038H4",49,"SEN Early Years Team","5969","Equipment - Purchase","21/05/2019"
"Wolverhampton City Council","http://opendatacommunities.org/id/metropolitan-district-council/wolverhampton","Amazon.co.uk MN6W05844",49,"SEN Early Years Team","5969","Equipment - Purchase","21/05/2019"
"Wolverhampton City Council","http://opendatacommunities.org/id/metropolitan-district-council/wolverhampton","Amazon.co.uk MN2W39834",49,"SEN Early Years Team","5969","Equipment - Purchase","21/05/2019"
"Wolverhampton City Council","http://opendatacommunities.org/id/metropolitan-district-council/wolverhampton","HM PASSPORT OFFICE",85,"LAC Transitions Team","9399","Client Allowances","21/05/2019"
"Wolverhampton City Council","http://opendatacommunities.org/id/metropolitan-district-council/wolverhampton","WWW.ICO.GOV.UK",40,"Members Expenses","9399","Subscriptions","21/05/2019"
"Wolverhampton City Council","http://opendatacommunities.org/id/metropolitan-district-council/wolverhampton","WWW.ICO.GOV.UK",40,"Members Expenses","9399","Subscriptions","21/05/2019"
"Wolverhampton City Council","http://opendatacommunities.org/id/metropolitan-district-council/wolverhampton","WWW.ICO.GOV.UK",40,"Members Expenses","9399","Subscriptions","21/05/2019"
"Wolverhampton City Council","http://opendatacommunities.org/id/metropolitan-district-council/wolverhampton","WWW.ICO.GOV.UK",40,"Members Expenses","9399","Subscriptions","21/05/2019"
"Wolverhampton City Council","http://opendatacommunities.org/id/metropolitan-district-council/wolverhampton","WWW.ICO.GOV.UK",40,"Members Expenses","9399","Subscriptions","21/05/2019"
"Wolverhampton City Council","http://opendatacommunities.org/id/metropolitan-district-council/wolverhampton","WWW.ICO.GOV.UK",40,"Members Expenses","9399","Subscriptions","21/05/2019"
"Wolverhampton City Council","http://opendatacommunities.org/id/metropolitan-district-council/wolverhampton","WWW.ICO.GOV.UK",40,"Members Expenses","9399","Subscriptions","21/05/2019"
"Wolverhampton City Council","http://opendatacommunities.org/id/metropolitan-district-council/wolverhampton","WWW.ICO.GOV.UK",40,"Members Expenses","9399","Subscriptions","21/05/2019"
"Wolverhampton City Council","http://opendatacommunities.org/id/metropolitan-district-council/wolverhampton","HILTON",200.03,"Delivery & OCE Development","3504","Conference Expenses","20/05/2019"
"Wolverhampton City Council","http://opendatacommunities.org/id/metropolitan-district-council/wolverhampton","GEN REGISTER OFFICE",-6.25,"LAC Transitions Team","9399","Client Allowances","20/05/2019"
"Wolverhampton City Council","http://opendatacommunities.org/id/metropolitan-district-council/wolverhampton","POST OFFICE COUNTER",140,"LAC Education Team (LACE)","9402","Comms - Postage","20/05/2019"
"Wolverhampton City Council","http://opendatacommunities.org/id/metropolitan-district-council/wolverhampton","POST OFFICE COUNTER",210,"LAC Education Team (LACE)","9402","Comms - Postage","20/05/2019"
"Wolverhampton City Council","http://opendatacommunities.org/id/metropolitan-district-council/wolverhampton","HILTON",200.03,"Delivery & OCE Development","3504","Conference Expenses","20/05/2019"
"Wolverhampton City Council","http://opendatacommunities.org/id/metropolitan-district-council/wolverhampton","WWW.ICELAND.CO.UK",37.95,"Bradley Resource Centre","5411","Provisions (Not for resale)","20/05/2019"
"Wolverhampton City Council","http://opendatacommunities.org/id/metropolitan-district-council/wolverhampton","ASDA STORE",81.99,"Bradley Resource Centre","5411","Provisions (Not for resale)","20/05/2019"
"Wolverhampton City Council","http://opendatacommunities.org/id/metropolitan-district-council/wolverhampton","ASDA GROCERIES ONLINE",175.8,"Bradley Resource Centre","5411","Provisions (Not for resale)","20/05/2019"
"Wolverhampton City Council","http://opendatacommunities.org/id/metropolitan-district-council/wolverhampton","WWW.WMCA.CO.UK",56.5,"IMPACT","9399","Services - Fees and Charges","20/05/2019"
"Wolverhampton City Council","http://opendatacommunities.org/id/metropolitan-district-council/wolverhampton","LUL TICKET MACHINE",13.1,"Research & Development","4112","Public Transport","20/05/2019"
"Wolverhampton City Council","http://opendatacommunities.org/id/metropolitan-district-council/wolverhampton","NATWEST BANK",200,"NRPF","6011","No Recourse to Public Funds","20/05/2019"
"Wolverhampton City Council","http://opendatacommunities.org/id/metropolitan-district-council/wolverhampton","ASDA GROCERIES ONLINE",5,"Bradley Resource Centre","5411","Provisions (Not for resale)","20/05/2019"
"Wolverhampton City Council","http://opendatacommunities.org/id/metropolitan-district-council/wolverhampton","ARGOS RETAIL GROUP",15.99,"EIP Locality 2","5310","Equipment - Purchase","20/05/2019"
"Wolverhampton City Council","http://opendatacommunities.org/id/metropolitan-district-council/wolverhampton","PREMIER INN",62.92,"Regional Adoption Agency","3811","Accommodation Costs","20/05/2019"
"Wolverhampton City Council","http://opendatacommunities.org/id/metropolitan-district-council/wolverhampton","WM MORRISONS STORE",3.05,"Regional Adoption Agency","5411","Provisions (Not for resale)","20/05/2019"
"Wolverhampton City Council","http://opendatacommunities.org/id/metropolitan-district-council/wolverhampton","EWETSUITS.COM",710.91,"Towers Outdoor Education Centre","5941","Equipment - Purchase","20/05/2019"
"Wolverhampton City Council","http://opendatacommunities.org/id/metropolitan-district-council/wolverhampton","GOOGLE  ADS9680351324",500,"Communications & Marketing - General","5968","Subscriptions","20/05/2019"
"Wolverhampton City Council","http://opendatacommunities.org/id/metropolitan-district-council/wolverhampton","MARKS&SPENCER PLC SACA",9.9,"Register Office","5411","Provisions (Not for resale)","20/05/2019"
"Wolverhampton City Council","http://opendatacommunities.org/id/metropolitan-district-council/wolverhampton","DOD`S PARLIAMENTARY CO",295,"HR Advice","7399","Conference Expenses","20/05/2019"
"Wolverhampton City Council","http://opendatacommunities.org/id/metropolitan-district-council/wolverhampton","AMZNMktplace",3.39,"Public Health Support Costs","5999","Equipment - Purchase","20/05/2019"
"Wolverhampton City Council","http://opendatacommunities.org/id/metropolitan-district-council/wolverhampton","AMZNMktplace",6.05,"Public Health Support Costs","5999","Equipment - Purchase","20/05/2019"
"Wolverhampton City Council","http://opendatacommunities.org/id/metropolitan-district-council/wolverhampton","THE OASIS CAFE",5.9,"Regional Adoption Agency","5814","Catering","20/05/2019"
"Wolverhampton City Council","http://opendatacommunities.org/id/metropolitan-district-council/wolverhampton","POST OFFICE COUNTER",8.7,"LAC Team","9402","Comms - Postage","20/05/2019"
"Wolverhampton City Council","http://opendatacommunities.org/id/metropolitan-district-council/wolverhampton","ASDA GROCERIES ONLINE",-0.38,"Upper Pendeford Farm Childrens Home","5411","Provisions (Not for resale)","20/05/2019"
"Wolverhampton City Council","http://opendatacommunities.org/id/metropolitan-district-council/wolverhampton","ASDA GROCERIES ONLINE",100.97,"Upper Pendeford Farm Childrens Home","5411","Provisions (Not for resale)","20/05/2019"
"Wolverhampton City Council","http://opendatacommunities.org/id/metropolitan-district-council/wolverhampton","HM PASSPORT OFFICE",54,"Looked After Team 2","9399","Financial Assistance In Exceptional Circ","20/05/2019"
"Wolverhampton City Council","http://opendatacommunities.org/id/metropolitan-district-council/wolverhampton","protectivemasksd",55.95,"Creative Studies Delivery Area","8099","Equipment - Purchase","20/05/2019"
"Wolverhampton City Council","http://opendatacommunities.org/id/metropolitan-district-council/wolverhampton","WWW.QUALSAFE.COM",13.5,"Work Related Studies","8299","Books","20/05/2019"
"Wolverhampton City Council","http://opendatacommunities.org/id/metropolitan-district-council/wolverhampton","AMZN Mktp UK MN9BT6HL4",4.88,"Creative Studies Delivery Area","5942","Equipment - Purchase","20/05/2019"
"Wolverhampton City Council","http://opendatacommunities.org/id/metropolitan-district-council/wolverhampton","AMZN Mktp UK MN6866544",7.15,"Creative Studies Delivery Area","5942","Equipment - Purchase","20/05/2019"
"Wolverhampton City Council","http://opendatacommunities.org/id/metropolitan-district-council/wolverhampton","TESCO STORES 5397",1.1,"EIP Locality 1","5411","Provisions (Not for resale)","20/05/2019"
"Wolverhampton City Council","http://opendatacommunities.org/id/metropolitan-district-council/wolverhampton","AMZNMktplace",17.67,"Global Budgets","5999","Books","20/05/2019"
"Wolverhampton City Council","http://opendatacommunities.org/id/metropolitan-district-council/wolverhampton","ASDA GROCERIES ONLINE",-0.02,"Ernest Bold Court","5411","Provisions (Not for resale)","20/05/2019"
"Wolverhampton City Council","http://opendatacommunities.org/id/metropolitan-district-council/wolverhampton","ASDA GROCERIES ONLINE",68.35,"Ernest Bold Court","5411","Provisions (Not for resale)","20/05/2019"
"Wolverhampton City Council","http://opendatacommunities.org/id/metropolitan-district-council/wolverhampton","HERON FOODS LTD",11.57,"Ernest Bold Court","5499","Provisions (Not for resale)","20/05/2019"
"Wolverhampton City Council","http://opendatacommunities.org/id/metropolitan-district-council/wolverhampton","Central Taxis Limited",6.42,"Head of Service - LAC","4121","Client Transport","20/05/2019"
"Wolverhampton City Council","http://opendatacommunities.org/id/metropolitan-district-council/wolverhampton","CARESHOP",205.88,"Specialist Support Service - North","5999","Cleaning Supplies and Materials","20/05/2019"
"Wolverhampton City Council","http://opendatacommunities.org/id/metropolitan-district-council/wolverhampton","DVSA",205,"Fleet Management","9399","MOT & HGV Tests","20/05/2019"
"Wolverhampton City Council","http://opendatacommunities.org/id/metropolitan-district-council/wolverhampton","Central Taxis Limited",3.6,"Legal Services","4121","Public Transport","20/05/2019"
"Wolverhampton City Council","http://opendatacommunities.org/id/metropolitan-district-council/wolverhampton","WWW.WMCA.CO.UK",56.5,"IMPACT","9399","Services - Fees and Charges","17/05/2019"
"Wolverhampton City Council","http://opendatacommunities.org/id/metropolitan-district-council/wolverhampton","WWW.WMCA.CO.UK",56.5,"IMPACT","9399","Services - Fees and Charges","17/05/2019"
"Wolverhampton City Council","http://opendatacommunities.org/id/metropolitan-district-council/wolverhampton","Cross Country Trains",108.8,"Court Team","4112","Public Transport","17/05/2019"
"Wolverhampton City Council","http://opendatacommunities.org/id/metropolitan-district-council/wolverhampton","Cross Country Trains",4.9,"Court Team","4112","Public Transport","17/05/2019"
"Wolverhampton City Council","http://opendatacommunities.org/id/metropolitan-district-council/wolverhampton","Trainline.com",35.15,"Court Team","4112","Public Transport","17/05/2019"
"Wolverhampton City Council","http://opendatacommunities.org/id/metropolitan-district-council/wolverhampton","CardtronicsUK",40.95,"Private Hire Vehicles","6011","Financial Assistance In Exceptional Circ","17/05/2019"
"Wolverhampton City Council","http://opendatacommunities.org/id/metropolitan-district-council/wolverhampton","STAGECOACH SERVICE",16.95,"Court Team","4131","Client Transport","17/05/2019"
"Wolverhampton City Council","http://opendatacommunities.org/id/metropolitan-district-council/wolverhampton","JACKS CAFE & BAR LTD",3.5,"Youth Offending Team","5812","Educ Trips, Holidays, Outings, Activity","17/05/2019"
"Wolverhampton City Council","http://opendatacommunities.org/id/metropolitan-district-council/wolverhampton","AMZNMKTPLACE AMAZON.CO",4.8,"Regional Adoption Agency","5999","Catering","17/05/2019"
"Wolverhampton City Council","http://opendatacommunities.org/id/metropolitan-district-council/wolverhampton","CURRYS SUPERSTORE",240.83,"Towers Outdoor Education Centre","5732","Fixtures and Fittings - Purchases","17/05/2019"
"Wolverhampton City Council","http://opendatacommunities.org/id/metropolitan-district-council/wolverhampton","PREMIER INN",76.25,"Fostering Team & Allowances","3811","Services - Supplies & Services to users","17/05/2019"
"Wolverhampton City Council","http://opendatacommunities.org/id/metropolitan-district-council/wolverhampton","Virgin Trains",435,"Fostering Team","4112","Public Transport","17/05/2019"
"Wolverhampton City Council","http://opendatacommunities.org/id/metropolitan-district-council/wolverhampton","WISEPOPS",85.96,"Communications & Marketing - General","7372","Computing - Purchase of Software","17/05/2019"
"Wolverhampton City Council","http://opendatacommunities.org/id/metropolitan-district-council/wolverhampton","AMZNMKTPLACE AMAZON.CO",54.95,"SWP - Infrastructure","5999","Equipment - Purchase","17/05/2019"
"Wolverhampton City Council","http://opendatacommunities.org/id/metropolitan-district-council/wolverhampton","POST OFFICE COUNTER",8.7,"Looked After Team 2","9402","Comms - Postage","17/05/2019"
"Wolverhampton City Council","http://opendatacommunities.org/id/metropolitan-district-council/wolverhampton","AMZ Amazon.co.uk",-14.39,"Strategic ICTS (ICT Serv Budget)","5969","Equipment - Purchase","17/05/2019"
"Wolverhampton City Council","http://opendatacommunities.org/id/metropolitan-district-council/wolverhampton","ASDA SUPERSTORE",14.6,"Central Baths","5411","Provisions (Not for resale)","17/05/2019"
"Wolverhampton City Council","http://opendatacommunities.org/id/metropolitan-district-council/wolverhampton","POST OFFICE COUNTER",7.4,"Looked After Team 2","9402","Comms - Postage","17/05/2019"
"Wolverhampton City Council","http://opendatacommunities.org/id/metropolitan-district-council/wolverhampton","STAMFORDPRO",359.5,"Foundation Studies","5331","Equipment - Purchase","17/05/2019"
"Wolverhampton City Council","http://opendatacommunities.org/id/metropolitan-district-council/wolverhampton","THE FINANCIAL TIMES",278.2,"Strategic Asset Management - General","5968","Subscriptions","17/05/2019"
"Wolverhampton City Council","http://opendatacommunities.org/id/metropolitan-district-council/wolverhampton","WWW.WOLVERHAMPTON.GOV.",413.44,"LAC Transitions Team","9399","Client Allowances","17/05/2019"
"Wolverhampton City Council","http://opendatacommunities.org/id/metropolitan-district-council/wolverhampton","WWW.WOLVERHAMPTON.GOV.",500,"LAC Transitions Team","9399","Client Allowances","17/05/2019"
"Wolverhampton City Council","http://opendatacommunities.org/id/metropolitan-district-council/wolverhampton","YMLP.COM",87.5,"Audience Development","7372","Computing - Purchase of Software","17/05/2019"
"Wolverhampton City Council","http://opendatacommunities.org/id/metropolitan-district-council/wolverhampton","THE SOLICITORS GROUP",59,"Central Training","8244","Training Expenses","17/05/2019"
"Wolverhampton City Council","http://opendatacommunities.org/id/metropolitan-district-council/wolverhampton","CITY OF WOLVERHAMPTON",75,"Head of Service - CINCP","9399","Services - Professional Fees","17/05/2019"
"Wolverhampton City Council","http://opendatacommunities.org/id/metropolitan-district-council/wolverhampton","WEBSTERS OF WOLLASTON",12,"Children & Family Contact Services","5261","Equipment - Purchase","17/05/2019"
"Wolverhampton City Council","http://opendatacommunities.org/id/metropolitan-district-council/wolverhampton","AMZNMktplace",21.66,"SEN Early Years Team","5999","Equipment - Purchase","17/05/2019"
"Wolverhampton City Council","http://opendatacommunities.org/id/metropolitan-district-council/wolverhampton","INPRINT LITHO LIMITED",185,"Technical Support","2741","Publications","17/05/2019"
"Wolverhampton City Council","http://opendatacommunities.org/id/metropolitan-district-council/wolverhampton","EB  YOUTH VOICE TRAINI",150.58,"Music Support Team","7399","Equipment - Purchase","17/05/2019"
"Wolverhampton City Council","http://opendatacommunities.org/id/metropolitan-district-council/wolverhampton","Amazon.co.uk MN7MH3MH4",28.66,"EIP Locality 7","5969","Equipment - Purchase","17/05/2019"
"Wolverhampton City Council","http://opendatacommunities.org/id/metropolitan-district-council/wolverhampton","WWW.WMCA.CO.UK",518,"Business Manager - Place","9399","Services - Fees and Charges","17/05/2019"
"Wolverhampton City Council","http://opendatacommunities.org/id/metropolitan-district-council/wolverhampton","CODSALL AND WERGS GARD",24.43,"Northicote Farm","5261","Materials","17/05/2019"
"Wolverhampton City Council","http://opendatacommunities.org/id/metropolitan-district-council/wolverhampton","Amazon.co.uk MN7AC1M44",12.98,"Global Budgets","5969","Books","17/05/2019"
"Wolverhampton City Council","http://opendatacommunities.org/id/metropolitan-district-council/wolverhampton","TESCO STORES 5194",-8.61,"Towers Outdoor Education Centre","5411","Provisions (Not for resale)","16/05/2019"
"Wolverhampton City Council","http://opendatacommunities.org/id/metropolitan-district-council/wolverhampton","Virgin Trains",190,"Fostering Team","4112","Public Transport","16/05/2019"
"Wolverhampton City Council","http://opendatacommunities.org/id/metropolitan-district-council/wolverhampton","Trainline.com",205.13,"Headstart Phase 3","4112","Public Transport","16/05/2019"
"Wolverhampton City Council","http://opendatacommunities.org/id/metropolitan-district-council/wolverhampton","AMZN MKTP UK MN2918V14",20.34,"Bert Williams Leisure Centre","5942","Books","16/05/2019"
"Wolverhampton City Council","http://opendatacommunities.org/id/metropolitan-district-council/wolverhampton","WP-CENTRAL TAXIS L",30.5,"LAC Education Team (LACE)","4121","Client Transport","16/05/2019"
"Wolverhampton City Council","http://opendatacommunities.org/id/metropolitan-district-council/wolverhampton","POST OFFICE COUNTER",5.5,"LAC Transitions Team","9402","Client Allowances","16/05/2019"
"Wolverhampton City Council","http://opendatacommunities.org/id/metropolitan-district-council/wolverhampton","VIDEKONLINE.CO.UK",311.5,"Strategic ICTS (ICT Serv Budget)","5722","Equipment - Purchase","16/05/2019"
"Wolverhampton City Council","http://opendatacommunities.org/id/metropolitan-district-council/wolverhampton","SIGHT AND SOUND TECHNO",40,"Strategic ICTS (ICT Serv Budget)","5045","Computing - Purchase of Hardware","16/05/2019"
"Wolverhampton City Council","http://opendatacommunities.org/id/metropolitan-district-council/wolverhampton","AMZNMktplace",3.92,"Strategic ICTS (ICT Serv Budget)","5999","Equipment - Purchase","16/05/2019"
"Wolverhampton City Council","http://opendatacommunities.org/id/metropolitan-district-council/wolverhampton","AMZNMktplace",29.97,"Strategic ICTS (ICT Serv Budget)","5999","Equipment - Purchase","16/05/2019"
"Wolverhampton City Council","http://opendatacommunities.org/id/metropolitan-district-council/wolverhampton","NOTT EMT CARPARK",7.5,"Legal Services","7523","Car Allowances","16/05/2019"
"Wolverhampton City Council","http://opendatacommunities.org/id/metropolitan-district-council/wolverhampton","WM MORRISONS STORE",169.2,"Upper Pendeford Farm Childrens Home","5411","Provisions (Not for resale)","16/05/2019"
"Wolverhampton City Council","http://opendatacommunities.org/id/metropolitan-district-council/wolverhampton","WOLVERHAMPTON T/O",54,"Mental Health Assessment & Care Mgmt","4112","Public Transport","16/05/2019"
"Wolverhampton City Council","http://opendatacommunities.org/id/metropolitan-district-council/wolverhampton","ASDA GROCERIES ONLINE",142.68,"Duke Street Bungalows","5411","Provisions (Not for resale)","16/05/2019"
"Wolverhampton City Council","http://opendatacommunities.org/id/metropolitan-district-council/wolverhampton","Virgin Trains",96.15,"LAC Team","4112","Public Transport","16/05/2019"
"Wolverhampton City Council","http://opendatacommunities.org/id/metropolitan-district-council/wolverhampton","Virgin Trains",81,"Looked After Team 2","4112","Public Transport","16/05/2019"
"Wolverhampton City Council","http://opendatacommunities.org/id/metropolitan-district-council/wolverhampton","ASDA GROCERIES ONLINE",198.86,"Duke Street Bungalows","5411","Provisions (Not for resale)","16/05/2019"
"Wolverhampton City Council","http://opendatacommunities.org/id/metropolitan-district-council/wolverhampton","J VAN VLIET BIRMINGHAM",114.4,"Creative Studies Delivery Area","5399","Materials for resale","16/05/2019"
"Wolverhampton City Council","http://opendatacommunities.org/id/metropolitan-district-council/wolverhampton","ASDA GROCERIES ONLINE",-5.65,"Bradley Resource Centre","5411","Provisions (Not for resale)","16/05/2019"
"Wolverhampton City Council","http://opendatacommunities.org/id/metropolitan-district-council/wolverhampton","ASDA GROCERIES ONLINE",99.8,"Bradley Resource Centre","5411","Provisions (Not for resale)","16/05/2019"
"Wolverhampton City Council","http://opendatacommunities.org/id/metropolitan-district-council/wolverhampton","WWW.BRISTOWSUTOR.C",0,"Revenues","9399","R9382","16/05/2019"
"Wolverhampton City Council","http://opendatacommunities.org/id/metropolitan-district-council/wolverhampton","MIDLAND LEISURE SALES",50.25,"Regional Adoption Agency","7032","Events","16/05/2019"
"Wolverhampton City Council","http://opendatacommunities.org/id/metropolitan-district-council/wolverhampton","LOYD 37 CHURCH STREET",300,"EIP Locality 8","6011","Grant Payments","15/05/2019"
"Wolverhampton City Council","http://opendatacommunities.org/id/metropolitan-district-council/wolverhampton","TVLICENSING.CO.UK",154.5,"Outdoor Events Admin","7392","Services - Consultants","15/05/2019"
"Wolverhampton City Council","http://opendatacommunities.org/id/metropolitan-district-council/wolverhampton","JEWSON",23.76,"Caretakers Community Centre","5211","Materials","15/05/2019"
"Wolverhampton City Council","http://opendatacommunities.org/id/metropolitan-district-council/wolverhampton","WM MORRISON FOOD.COM",139.31,"Discretionary Fund","5411","Materials","15/05/2019"
"Wolverhampton City Council","http://opendatacommunities.org/id/metropolitan-district-council/wolverhampton","TVLICENSING.CO.UK",154.5,"LAC Transitions Team","7392","Services - Consultants","15/05/2019"
"Wolverhampton City Council","http://opendatacommunities.org/id/metropolitan-district-council/wolverhampton","ROYAL BK OF SCOTLAND",250,"CIN/CP Social Work Unit - Area 6","6011","Section 17","15/05/2019"
"Wolverhampton City Council","http://opendatacommunities.org/id/metropolitan-district-council/wolverhampton","PREMIER INN",412.5,"Regional Adoption Agency","3811","Accommodation Costs","15/05/2019"
"Wolverhampton City Council","http://opendatacommunities.org/id/metropolitan-district-council/wolverhampton","PREMIER INN",102.08,"Regional Adoption Agency","3811","Accommodation Costs","15/05/2019"
"Wolverhampton City Council","http://opendatacommunities.org/id/metropolitan-district-council/wolverhampton","Amazon.co.uk MN51F9XD4",65.99,"Regional Adoption Agency","5969","Books","15/05/2019"
"Wolverhampton City Council","http://opendatacommunities.org/id/metropolitan-district-council/wolverhampton","TESCO STORES 5194",187.32,"Towers Outdoor Education Centre","5411","Provisions (Not for resale)","15/05/2019"
"Wolverhampton City Council","http://opendatacommunities.org/id/metropolitan-district-council/wolverhampton","HARLECH FOODSERVICE LT",145.45,"Towers Outdoor Education Centre","5422","Provisions (Not for resale)","15/05/2019"
"Wolverhampton City Council","http://opendatacommunities.org/id/metropolitan-district-council/wolverhampton","HN NUTTALL LTD",182.8,"Towers Outdoor Education Centre","5085","Provisions (Not for resale)","15/05/2019"
"Wolverhampton City Council","http://opendatacommunities.org/id/metropolitan-district-council/wolverhampton","CARD FACTORY",6.99,"Register Office","5947","Equipment - Purchase","15/05/2019"
"Wolverhampton City Council","http://opendatacommunities.org/id/metropolitan-district-council/wolverhampton","SAINSBURYS PFS (1340)",1.67,"Mayoral Expenses","5541","Vehicle Maintenance - Repairs","15/05/2019"
"Wolverhampton City Council","http://opendatacommunities.org/id/metropolitan-district-council/wolverhampton","SAINSBURYS SACAT (2340",2.9,"Mayoral Expenses","5411","Hospitality","15/05/2019"
"Wolverhampton City Council","http://opendatacommunities.org/id/metropolitan-district-council/wolverhampton","CREATIVE FRAMING",50,"Mayoral Expenses","5971","Services - Professional Fees","15/05/2019"
"Wolverhampton City Council","http://opendatacommunities.org/id/metropolitan-district-council/wolverhampton","ITUNES.COM/BILL",2.07,"Corporate Parenting","5735","Computing - Purchase of Software","15/05/2019"
"Wolverhampton City Council","http://opendatacommunities.org/id/metropolitan-district-council/wolverhampton","ASDA GROCERIES ONLINE",5,"Upper Pendeford Farm Childrens Home","5411","Provisions (Not for resale)","15/05/2019"
"Wolverhampton City Council","http://opendatacommunities.org/id/metropolitan-district-council/wolverhampton","Trainline",8.9,"Service Director Disab & Mental Health","4112","Public Transport","15/05/2019"
"Wolverhampton City Council","http://opendatacommunities.org/id/metropolitan-district-council/wolverhampton","Trainline",200.85,"Service Director Disab & Mental Health","4112","Public Transport","15/05/2019"
"Wolverhampton City Council","http://opendatacommunities.org/id/metropolitan-district-council/wolverhampton","SCREWFIX DIRECT LT",26.66,"Culwell Street Depot","5211","Materials","15/05/2019"
"Wolverhampton City Council","http://opendatacommunities.org/id/metropolitan-district-council/wolverhampton","BOOK PEOPLE VOUCHER",3,"EIP Locality 1","5942","Books","15/05/2019"
"Wolverhampton City Council","http://opendatacommunities.org/id/metropolitan-district-council/wolverhampton","WWW.ARGOS.CO.UK",252.46,"Bradley Resource Centre","5310","Equipment - Purchase","15/05/2019"
"Wolverhampton City Council","http://opendatacommunities.org/id/metropolitan-district-council/wolverhampton","WIX.COM",30.63,"Technical Support","5968","Subscriptions","15/05/2019"
"Wolverhampton City Council","http://opendatacommunities.org/id/metropolitan-district-council/wolverhampton","POST OFFICE COUNTER",11,"Looked After Team 2","9402","Comms - Postage","15/05/2019"
"Wolverhampton City Council","http://opendatacommunities.org/id/metropolitan-district-council/wolverhampton","Trainline",86.18,"Housing Regeneration - Strategy & Dev","4112","Public Transport","15/05/2019"
"Wolverhampton City Council","http://opendatacommunities.org/id/metropolitan-district-council/wolverhampton","EE STORE R501",8.33,"School Crossing Patrol","4814","Comms - Telephone Call charges","15/05/2019"
"Wolverhampton City Council","http://opendatacommunities.org/id/metropolitan-district-council/wolverhampton","Amazon.co.uk MN88B9GG4",10.21,"Children & Family Contact Services","5969","Equipment - Purchase","15/05/2019"
"Wolverhampton City Council","http://opendatacommunities.org/id/metropolitan-district-council/wolverhampton","CITY OF WOLVERHAMPTON",-11,"Court Team","9399","Section 17","15/05/2019"
"Wolverhampton City Council","http://opendatacommunities.org/id/metropolitan-district-council/wolverhampton","BCC REGISTER OFFIC",13.5,"Court Team","9399","Section 17","15/05/2019"
"Wolverhampton City Council","http://opendatacommunities.org/id/metropolitan-district-council/wolverhampton","CITY OF WOLVERHAMPTON",49,"Court Team","9399","Section 17","15/05/2019"
"Wolverhampton City Council","http://opendatacommunities.org/id/metropolitan-district-council/wolverhampton","Trainline",19.99,"Court Team","4112","Section 17","15/05/2019"
"Wolverhampton City Council","http://opendatacommunities.org/id/metropolitan-district-council/wolverhampton","CITY OF WOLVERHAMPTON",40.83,"LAC Transitions Team","9399","Client Allowances","15/05/2019"
"Wolverhampton City Council","http://opendatacommunities.org/id/metropolitan-district-council/wolverhampton","AMZN Mktp UK MN9F23VK4",24.95,"Members Expenses","5942","Equipment - Purchase","15/05/2019"
"Wolverhampton City Council","http://opendatacommunities.org/id/metropolitan-district-council/wolverhampton","TFM FARM   COUNTRY",34.87,"Northicote Farm","0763","Equipment - Purchase","15/05/2019"
"Wolverhampton City Council","http://opendatacommunities.org/id/metropolitan-district-council/wolverhampton","AMZNMktplace",14.48,"Civic Centre","5999","Equipment - Purchase","14/05/2019"
"Wolverhampton City Council","http://opendatacommunities.org/id/metropolitan-district-council/wolverhampton","ASDA GROCERIES ONLINE",141.08,"Bradley Resource Centre","5411","Provisions (Not for resale)","14/05/2019"
"Wolverhampton City Council","http://opendatacommunities.org/id/metropolitan-district-council/wolverhampton","NALDIC.ORG.UK",100,"Controlling Migration fund","8398","Services - Supplies & Services to users","14/05/2019"
"Wolverhampton City Council","http://opendatacommunities.org/id/metropolitan-district-council/wolverhampton","NATWEST BANK",400,"NRPF","6011","No Recourse to Public Funds","14/05/2019"
"Wolverhampton City Council","http://opendatacommunities.org/id/metropolitan-district-council/wolverhampton","GOOGLE  ADS9680351324",500,"Communications & Marketing - General","5968","Subscriptions","14/05/2019"
"Wolverhampton City Council","http://opendatacommunities.org/id/metropolitan-district-council/wolverhampton","HIGHSTREETVOUCHERS",40,"Headstart - Employability","8641","Books","14/05/2019"
"Wolverhampton City Council","http://opendatacommunities.org/id/metropolitan-district-council/wolverhampton","AMZN Mktp UK MN8699XX4",33.3,"Headstart - Employability","5942","Events","14/05/2019"
"Wolverhampton City Council","http://opendatacommunities.org/id/metropolitan-district-council/wolverhampton","Virgin Trains",94.45,"LAC Team","4112","Client Transport","14/05/2019"
"Wolverhampton City Council","http://opendatacommunities.org/id/metropolitan-district-council/wolverhampton","Virgin Trains",58.7,"LAC Team","4112","Public Transport","14/05/2019"
"Wolverhampton City Council","http://opendatacommunities.org/id/metropolitan-district-council/wolverhampton","ASDA GROCERIES ONLINE",36.5,"Creative Studies Delivery Area","5411","Provisions (Not for resale)","14/05/2019"
"Wolverhampton City Council","http://opendatacommunities.org/id/metropolitan-district-council/wolverhampton","TFW RAIL SERVICES",8,"Research & Development","4112","Public Transport","14/05/2019"
"Wolverhampton City Council","http://opendatacommunities.org/id/metropolitan-district-council/wolverhampton","HOME BARGAINS",4.63,"Bilston Market & Licensed Operations","5251","Equipment - Purchase","14/05/2019"
"Wolverhampton City Council","http://opendatacommunities.org/id/metropolitan-district-council/wolverhampton","WWW.SUPERSPORTY.CO.UK",247.96,"Healthy Life Expectancy","5941","Equipment - Purchase","14/05/2019"
"Wolverhampton City Council","http://opendatacommunities.org/id/metropolitan-district-council/wolverhampton","CURRYS S/S",8.99,"Transportation General","5732","Equipment - Purchase","14/05/2019"
"Wolverhampton City Council","http://opendatacommunities.org/id/metropolitan-district-council/wolverhampton","ROOKERY Sainsburys Ba",200,"Duke Street Bungalows","6011","Provisions (Not for resale)","14/05/2019"
"Wolverhampton City Council","http://opendatacommunities.org/id/metropolitan-district-council/wolverhampton","ASDA GROCERIES ONLINE",68.06,"Ernest Bold Court","5411","Provisions (Not for resale)","14/05/2019"
"Wolverhampton City Council","http://opendatacommunities.org/id/metropolitan-district-council/wolverhampton","ASDA GROCERIES ONLINE",190.01,"Duke Street Bungalows","5411","Provisions (Not for resale)","14/05/2019"
"Wolverhampton City Council","http://opendatacommunities.org/id/metropolitan-district-council/wolverhampton","WWW.GEAR4MUSIC.COM",550,"Music Support Team","5733","Equipment - Purchase","14/05/2019"
"Wolverhampton City Council","http://opendatacommunities.org/id/metropolitan-district-council/wolverhampton","Virgin Trains",111.1,"LAC Team","4112","Client Transport","14/05/2019"
"Wolverhampton City Council","http://opendatacommunities.org/id/metropolitan-district-council/wolverhampton","WWW.GEAR4MUSIC.COM",159.35,"Music Support Team","5733","Equipment - Purchase","14/05/2019"
"Wolverhampton City Council","http://opendatacommunities.org/id/metropolitan-district-council/wolverhampton","WWW.GEAR4MUSIC.COM",550,"Music Support Team","5733","Equipment - Purchase","14/05/2019"
"Wolverhampton City Council","http://opendatacommunities.org/id/metropolitan-district-council/wolverhampton","ASDA GROCERIES ONLINE",-2.6,"Bradley Resource Centre","5411","Provisions (Not for resale)","13/05/2019"
"Wolverhampton City Council","http://opendatacommunities.org/id/metropolitan-district-council/wolverhampton","ASDA GROCERIES ONLINE",169.9,"Bradley Resource Centre","5411","Provisions (Not for resale)","13/05/2019"
"Wolverhampton City Council","http://opendatacommunities.org/id/metropolitan-district-council/wolverhampton","WWW.WMCA.CO.UK",56.5,"IMPACT","9399","Services - Fees and Charges","13/05/2019"
"Wolverhampton City Council","http://opendatacommunities.org/id/metropolitan-district-council/wolverhampton","DULUX DECORATOR CENTRE",171.58,"Technician","5198","Materials","13/05/2019"
"Wolverhampton City Council","http://opendatacommunities.org/id/metropolitan-district-council/wolverhampton","DULUX DECORATOR CENTRE",631.41,"Wildlife Photographer","5198","Materials","13/05/2019"
"Wolverhampton City Council","http://opendatacommunities.org/id/metropolitan-district-council/wolverhampton","Trainline",42.33,"Court Team","4112","Public Transport","13/05/2019"
"Wolverhampton City Council","http://opendatacommunities.org/id/metropolitan-district-council/wolverhampton","SAINSBURYS 2040",5.83,"Mayoral Expenses","5411","Clothing / Uniforms","13/05/2019"
"Wolverhampton City Council","http://opendatacommunities.org/id/metropolitan-district-council/wolverhampton","000002200500000",220,"Childrens with Disabilities Team","6011","No Recourse to Public Funds","13/05/2019"
"Wolverhampton City Council","http://opendatacommunities.org/id/metropolitan-district-council/wolverhampton","POST OFFICE COUNTER",7.39,"Adoption and Residence Team & Allowances","9402","Comms - Postage","13/05/2019"
"Wolverhampton City Council","http://opendatacommunities.org/id/metropolitan-district-council/wolverhampton","Amazon.co.uk MN0YO50Y4",18.97,"Adoption and Residence Team & Allowances","5969","Books","13/05/2019"
"Wolverhampton City Council","http://opendatacommunities.org/id/metropolitan-district-council/wolverhampton","TESCO DELIVERY SAVER2",3.49,"Towers Outdoor Education Centre","5968","Provisions (Not for resale)","13/05/2019"
"Wolverhampton City Council","http://opendatacommunities.org/id/metropolitan-district-council/wolverhampton","MONARCH CLEANERS LTD",281.3,"Towers Outdoor Education Centre","7216","Laundry Expenses","13/05/2019"
"Wolverhampton City Council","http://opendatacommunities.org/id/metropolitan-district-council/wolverhampton","FUEL CARD SERVICES LTD",66.59,"Towers Outdoor Education Centre","7399","Petrol","13/05/2019"
"Wolverhampton City Council","http://opendatacommunities.org/id/metropolitan-district-council/wolverhampton","C L JONES HEAD OFFICE",102.43,"Towers Outdoor Education Centre","5211","Fixtures and Fittings - Purchases","13/05/2019"
"Wolverhampton City Council","http://opendatacommunities.org/id/metropolitan-district-council/wolverhampton","VERSAPAK",145.44,"Electoral Registration","8999","Equipment - Purchase","13/05/2019"
"Wolverhampton City Council","http://opendatacommunities.org/id/metropolitan-district-council/wolverhampton","ONEBELOW",0.97,"Wholly Owned Company - Operations","5411","Provisions (Not for resale)","13/05/2019"
"Wolverhampton City Council","http://opendatacommunities.org/id/metropolitan-district-council/wolverhampton","AMZNMKTPLACE AMAZON.CO",31.68,"Wholly Owned Company - Operations","5999","Equipment - Purchase","13/05/2019"
"Wolverhampton City Council","http://opendatacommunities.org/id/metropolitan-district-council/wolverhampton","BARBICAN HOTEL",130.83,"Headstart Phase 3","7011","Accommodation Costs","13/05/2019"
"Wolverhampton City Council","http://opendatacommunities.org/id/metropolitan-district-council/wolverhampton","CUMMINGS BROTHERS LOCK",7.92,"Aldersley Leisure Village","7399","Equipment - R & M","13/05/2019"
"Wolverhampton City Council","http://opendatacommunities.org/id/metropolitan-district-council/wolverhampton","Perton Golf Club Pro S",-41.67,"Mayoral Expenses","7997","Hospitality","13/05/2019"
"Wolverhampton City Council","http://opendatacommunities.org/id/metropolitan-district-council/wolverhampton","NAMESCO",34.99,"Communications & Marketing - General","4816","Computing - Purchase of Software","13/05/2019"
"Wolverhampton City Council","http://opendatacommunities.org/id/metropolitan-district-council/wolverhampton","RESPONSTER PLUS PLAN",15.05,"Communications & Marketing - General","5734","Computing - Purchase of Software","13/05/2019"
"Wolverhampton City Council","http://opendatacommunities.org/id/metropolitan-district-council/wolverhampton","COVENTRY CITY COUNCIL",12.5,"LAC Transitions Team","7999","Client Allowances","13/05/2019"
"Wolverhampton City Council","http://opendatacommunities.org/id/metropolitan-district-council/wolverhampton","Amazon.co.uk MN6YY9PD4",29.98,"Youth Offending Team","5969","Books","13/05/2019"
"Wolverhampton City Council","http://opendatacommunities.org/id/metropolitan-district-council/wolverhampton","EBUYER (UK) LTD",67.51,"Strategic ICTS (ICT Serv Budget)","5722","Equipment - Purchase","13/05/2019"
"Wolverhampton City Council","http://opendatacommunities.org/id/metropolitan-district-council/wolverhampton","EBUYER (UK) LTD",227.81,"Strategic ICTS (ICT Serv Budget)","5722","Equipment - Purchase","13/05/2019"
"Wolverhampton City Council","http://opendatacommunities.org/id/metropolitan-district-council/wolverhampton","AMZNMktplace",191.66,"Central Baths","5999","Equipment - Purchase","13/05/2019"
"Wolverhampton City Council","http://opendatacommunities.org/id/metropolitan-district-council/wolverhampton","SAINSBURYS (2340)",13.25,"Intensive Family Support Team","5411","Provisions (Not for resale)","13/05/2019"
"Wolverhampton City Council","http://opendatacommunities.org/id/metropolitan-district-council/wolverhampton","BRITISH STANDARDS",52,"Private Hire Drivers","7399","Equipment - Purchase","13/05/2019"
"Wolverhampton City Council","http://opendatacommunities.org/id/metropolitan-district-council/wolverhampton","Virgin Trains",119.6,"Black Country Transport Director","4112","Events","13/05/2019"
"Wolverhampton City Council","http://opendatacommunities.org/id/metropolitan-district-council/wolverhampton","Trainline",150.08,"Education Catering - General Overheads","4112","Public Transport","13/05/2019"
"Wolverhampton City Council","http://opendatacommunities.org/id/metropolitan-district-council/wolverhampton","WOLVERHAMPTON TROPHY C",57.5,"Head of Strategic Commissioning � People","5999","Equipment - Purchase","13/05/2019"
"Wolverhampton City Council","http://opendatacommunities.org/id/metropolitan-district-council/wolverhampton","MAX SPIELMANN LTD",30,"Head of Strategic Commissioning � People","7221","Publications","13/05/2019"
"Wolverhampton City Council","http://opendatacommunities.org/id/metropolitan-district-council/wolverhampton","Wix.com",93.13,"Technical Support","5817","Computing - Purchase of Software","13/05/2019"
"Wolverhampton City Council","http://opendatacommunities.org/id/metropolitan-district-council/wolverhampton","WWW.CITIZENCARD.COM",20.83,"LAC Transitions Team","9399","Client Allowances","13/05/2019"
"Wolverhampton City Council","http://opendatacommunities.org/id/metropolitan-district-council/wolverhampton","POST OFFICE COUNTER",7.4,"LAC Team","9402","Comms - Postage","13/05/2019"
"Wolverhampton City Council","http://opendatacommunities.org/id/metropolitan-district-council/wolverhampton","ROOKERY Sainsburys Ba",200,"Duke Street Bungalows","6011","Provisions (Not for resale)","13/05/2019"
"Wolverhampton City Council","http://opendatacommunities.org/id/metropolitan-district-council/wolverhampton","AMZN Mktp UK MN3906PS4",87.28,"Global Budgets","5942","Books","13/05/2019"
"Wolverhampton City Council","http://opendatacommunities.org/id/metropolitan-district-council/wolverhampton","AMZNMktplace",3.7,"Global Budgets","5999","Equipment - Purchase","13/05/2019"
"Wolverhampton City Council","http://opendatacommunities.org/id/metropolitan-district-council/wolverhampton","AMZN Mktp UK MN3I770F4",4.31,"Global Budgets","5942","Books","13/05/2019"
"Wolverhampton City Council","http://opendatacommunities.org/id/metropolitan-district-council/wolverhampton","WWW.ARGOS.CO.UK",89.12,"EIP Locality 3","5310","Grant Payments","13/05/2019"
"Wolverhampton City Council","http://opendatacommunities.org/id/metropolitan-district-council/wolverhampton","STAFFORDSHIRE COUNTY C",22,"LAC Team","9399","Financial Assistance In Exceptional Circ","13/05/2019"
"Wolverhampton City Council","http://opendatacommunities.org/id/metropolitan-district-council/wolverhampton","AMZN MKTP UK MN3SQ6174",9.17,"Children & Family Contact Services","5942","Books","13/05/2019"
"Wolverhampton City Council","http://opendatacommunities.org/id/metropolitan-district-council/wolverhampton","Amazon.co.uk MN3D78P04",40.86,"Children & Family Contact Services","5969","Equipment - Purchase","13/05/2019"
"Wolverhampton City Council","http://opendatacommunities.org/id/metropolitan-district-council/wolverhampton","AMZN MKTP UK MN0J901D4",4.08,"Children & Family Contact Services","5942","Books","13/05/2019"
"Wolverhampton City Council","http://opendatacommunities.org/id/metropolitan-district-council/wolverhampton","WP-CENTRAL TAXIS L",52.2,"LAC Team","4121","Client Transport","13/05/2019"
"Wolverhampton City Council","http://opendatacommunities.org/id/metropolitan-district-council/wolverhampton","ASDA GROCERIES ONLINE",59.6,"Ernest Bold Court","5411","Provisions (Not for resale)","13/05/2019"
"Wolverhampton City Council","http://opendatacommunities.org/id/metropolitan-district-council/wolverhampton","HERON FOODS LTD",15.51,"Ernest Bold Court","5499","Provisions (Not for resale)","13/05/2019"
"Wolverhampton City Council","http://opendatacommunities.org/id/metropolitan-district-council/wolverhampton","AMZNMktplace",36.29,"Planning","5999","Equipment - Purchase","13/05/2019"
"Wolverhampton City Council","http://opendatacommunities.org/id/metropolitan-district-council/wolverhampton","AMZN Mktp UK MN0XB7PF4",25.82,"Private Sector Housing","5942","Equipment - Purchase","13/05/2019"
"Wolverhampton City Council","http://opendatacommunities.org/id/metropolitan-district-council/wolverhampton","Virgin Trains",108,"HRA General","4112","Public Transport","13/05/2019"
"Wolverhampton City Council","http://opendatacommunities.org/id/metropolitan-district-council/wolverhampton","AMZ Amazon.co.uk",-31.62,"Northicote Farm","5969","Clothing / Uniforms","13/05/2019"
"Wolverhampton City Council","http://opendatacommunities.org/id/metropolitan-district-council/wolverhampton","Amazon.co.uk MN9F38184",26.42,"Northicote Farm","5969","Clothing / Uniforms","13/05/2019"
"Wolverhampton City Council","http://opendatacommunities.org/id/metropolitan-district-council/wolverhampton","POST OFFICE COUNTER",35,"Children & Family Contact Services","9402","Comms - Postage","13/05/2019"
"Wolverhampton City Council","http://opendatacommunities.org/id/metropolitan-district-council/wolverhampton","MATALAN",27.5,"Ernest Bold Court","5691","Equipment - Purchase","13/05/2019"
"Wolverhampton City Council","http://opendatacommunities.org/id/metropolitan-district-council/wolverhampton","Trainline",111.21,"Research & Development","4112","Public Transport","13/05/2019"
"Wolverhampton City Council","http://opendatacommunities.org/id/metropolitan-district-council/wolverhampton","Virgin Trains",41.7,"-","4112","Public Transport","13/05/2019"
"Wolverhampton City Council","http://opendatacommunities.org/id/metropolitan-district-council/wolverhampton","Virgin Trains",83.4,"-","4112","Public Transport","13/05/2019"
"Wolverhampton City Council","http://opendatacommunities.org/id/metropolitan-district-council/wolverhampton","Amazon.co.uk MN9V81E04",15.56,"EIP Locality 8","5969","Equipment - Purchase","10/05/2019"
"Wolverhampton City Council","http://opendatacommunities.org/id/metropolitan-district-council/wolverhampton","LOYD 37 CHURCH STREET",50,"EIP Locality 8","6011","Grant Payments","10/05/2019"
"Wolverhampton City Council","http://opendatacommunities.org/id/metropolitan-district-council/wolverhampton","CUMMINGS BROTHERS LOCK",42.5,"-","7399","Equipment - Purchase","10/05/2019"
"Wolverhampton City Council","http://opendatacommunities.org/id/metropolitan-district-council/wolverhampton","WEST MID TRAVEL",436.35,"IMPACT","4131","Public Transport","10/05/2019"
"Wolverhampton City Council","http://opendatacommunities.org/id/metropolitan-district-council/wolverhampton","WICKES BUILDING",14.62,"Wildlife Photographer","5211","Materials","10/05/2019"
"Wolverhampton City Council","http://opendatacommunities.org/id/metropolitan-district-council/wolverhampton","SAFETOTS",38.87,"Wildlife Photographer","5641","Equipment - Purchase","10/05/2019"
"Wolverhampton City Council","http://opendatacommunities.org/id/metropolitan-district-council/wolverhampton","FARNELL",54.48,"Wildlife Photographer","5065","Equipment - Purchase","10/05/2019"
"Wolverhampton City Council","http://opendatacommunities.org/id/metropolitan-district-council/wolverhampton","Virgin Trains",158.85,"Revenues","4112","Public Transport","10/05/2019"
"Wolverhampton City Council","http://opendatacommunities.org/id/metropolitan-district-council/wolverhampton","Virgin Trains",6.3,"Revenues","4112","Public Transport","10/05/2019"
"Wolverhampton City Council","http://opendatacommunities.org/id/metropolitan-district-council/wolverhampton","Trainline",139.75,"Safeguarding Admin Resource","4112","Public Transport","10/05/2019"
"Wolverhampton City Council","http://opendatacommunities.org/id/metropolitan-district-council/wolverhampton","WWW.ARGOS.CO.UK",169.99,"LAC Transitions Team","5310","Equipment - Purchase","10/05/2019"
"Wolverhampton City Council","http://opendatacommunities.org/id/metropolitan-district-council/wolverhampton","DAVIES BROTHERS",291.67,"Towers Outdoor Education Centre","8911","Fixtures and Fittings - Purchases","10/05/2019"
"Wolverhampton City Council","http://opendatacommunities.org/id/metropolitan-district-council/wolverhampton","AMZ LX Tech",-13,"Communications & Marketing - General","5999","Equipment - Purchase","10/05/2019"
"Wolverhampton City Council","http://opendatacommunities.org/id/metropolitan-district-council/wolverhampton","MENTAL HEALTH FOUNDATI",105.83,"WV Active Marketing","8398","Services - Supplies & Services to users","10/05/2019"
"Wolverhampton City Council","http://opendatacommunities.org/id/metropolitan-district-council/wolverhampton","SHROPSHIRESTAR.COM",66,"Communications & Marketing - General","5994","Books","10/05/2019"
"Wolverhampton City Council","http://opendatacommunities.org/id/metropolitan-district-council/wolverhampton","AMZN Mktp UK MN9Z250J4",9.83,"Communications & Marketing - General","5942","Books","10/05/2019"
"Wolverhampton City Council","http://opendatacommunities.org/id/metropolitan-district-council/wolverhampton","AMZN Mktp UK MN6QA1E14",29.49,"Communications & Marketing - General","5942","Books","10/05/2019"
"Wolverhampton City Council","http://opendatacommunities.org/id/metropolitan-district-council/wolverhampton","Virgin Trains",99.1,"LAC Team","4112","Public Transport","10/05/2019"
"Wolverhampton City Council","http://opendatacommunities.org/id/metropolitan-district-council/wolverhampton","Virgin Trains",216,"LAC Team","4112","Public Transport","10/05/2019"
"Wolverhampton City Council","http://opendatacommunities.org/id/metropolitan-district-council/wolverhampton","AMZNMktplace",29.12,"Strategic ICTS (ICT Serv Budget)","5999","Equipment - Purchase","10/05/2019"
"Wolverhampton City Council","http://opendatacommunities.org/id/metropolitan-district-council/wolverhampton","Central Taxis Limited",3,"Legal Services","4121","Client Transport","10/05/2019"
"Wolverhampton City Council","http://opendatacommunities.org/id/metropolitan-district-council/wolverhampton","ASDA SUPERSTORE",256.51,"Upper Pendeford Farm Childrens Home","5411","Provisions (Not for resale)","10/05/2019"
"Wolverhampton City Council","http://opendatacommunities.org/id/metropolitan-district-council/wolverhampton","WWW.ARGOS.CO.UK",35.93,"LAC Team","5310","Financial Assistance In Exceptional Circ","10/05/2019"
"Wolverhampton City Council","http://opendatacommunities.org/id/metropolitan-district-council/wolverhampton","CITY OF WOLVERHAMPTON",51,"LAC Team","9399","Financial Assistance In Exceptional Circ","10/05/2019"
"Wolverhampton City Council","http://opendatacommunities.org/id/metropolitan-district-council/wolverhampton","HM PASSPORT OFFICE",58.5,"LAC Team","9399","Financial Assistance In Exceptional Circ","10/05/2019"
"Wolverhampton City Council","http://opendatacommunities.org/id/metropolitan-district-council/wolverhampton","ASDA GROCERIES ONLINE",5,"Upper Pendeford Farm Childrens Home","5411","Provisions (Not for resale)","10/05/2019"
"Wolverhampton City Council","http://opendatacommunities.org/id/metropolitan-district-council/wolverhampton","Amazon.co.uk MN8Z30054",54.76,"Communications & Marketing - General","5969","Equipment - Purchase","10/05/2019"
"Wolverhampton City Council","http://opendatacommunities.org/id/metropolitan-district-council/wolverhampton","Trainline",9.25,"Service Director Disab & Mental Health","4112","Public Transport","10/05/2019"
"Wolverhampton City Council","http://opendatacommunities.org/id/metropolitan-district-council/wolverhampton","CARVER/WOLVERHAMPTON/L",15.11,"Culwell Street Depot","5211","R&M - Departmental planned (external)","10/05/2019"
"Wolverhampton City Council","http://opendatacommunities.org/id/metropolitan-district-council/wolverhampton","WEST MID TRAVEL",446.35,"Community Enablement","4131","Public Transport","10/05/2019"
"Wolverhampton City Council","http://opendatacommunities.org/id/metropolitan-district-council/wolverhampton","ICELAND",10.75,"Carers Support","5411","Provisions (Not for resale)","10/05/2019"
"Wolverhampton City Council","http://opendatacommunities.org/id/metropolitan-district-council/wolverhampton","FSPRG.UK",1369.9,"Technical Support","5818","Subscriptions","10/05/2019"
"Wolverhampton City Council","http://opendatacommunities.org/id/metropolitan-district-council/wolverhampton","123-REG.CO.UK",9.99,"Technical Support","4816","Computing - Purchase of Software","10/05/2019"
"Wolverhampton City Council","http://opendatacommunities.org/id/metropolitan-district-council/wolverhampton","STAGECOACH SERVICE",14.55,"Court Team","4131","Section 17","10/05/2019"
"Wolverhampton City Council","http://opendatacommunities.org/id/metropolitan-district-council/wolverhampton","PAY WEEKLY",130,"EIP Locality 3","5713","Grant Payments","10/05/2019"
"Wolverhampton City Council","http://opendatacommunities.org/id/metropolitan-district-council/wolverhampton","Cross Country Trains",108.8,"Court Team","4112","Section 17","10/05/2019"
"Wolverhampton City Council","http://opendatacommunities.org/id/metropolitan-district-council/wolverhampton","Amazon.co.uk MN5ZS00G4",30.5,"School Crossing Patrol","5969","Equipment - Purchase","10/05/2019"
"Wolverhampton City Council","http://opendatacommunities.org/id/metropolitan-district-council/wolverhampton","Cross Country Trains",4.9,"Court Team","4112","Section 17","10/05/2019"
"Wolverhampton City Council","http://opendatacommunities.org/id/metropolitan-district-council/wolverhampton","AMZNMktplace",35.57,"Road Safety","5999","Equipment - Purchase","10/05/2019"
"Wolverhampton City Council","http://opendatacommunities.org/id/metropolitan-district-council/wolverhampton","AMZNMktplace",12.49,"Parks - East Area Management","5999","Equipment - Purchase","10/05/2019"
"Wolverhampton City Council","http://opendatacommunities.org/id/metropolitan-district-council/wolverhampton","AMZNMktplace",18.32,"Parks - East Area Management","5999","Equipment - Purchase","10/05/2019"
"Wolverhampton City Council","http://opendatacommunities.org/id/metropolitan-district-council/wolverhampton","Virgin Trains",284.4,"Trading Standards","4112","Public Transport","10/05/2019"
"Wolverhampton City Council","http://opendatacommunities.org/id/metropolitan-district-council/wolverhampton","PP 6569CODE",-1,"Northicote Farm","8999","Equipment - Purchase","10/05/2019"
"Wolverhampton City Council","http://opendatacommunities.org/id/metropolitan-district-council/wolverhampton","PAYPAL  HORNER SHEA",70.95,"Northicote Farm","5099","Equipment - Purchase","10/05/2019"
"Wolverhampton City Council","http://opendatacommunities.org/id/metropolitan-district-council/wolverhampton","Amazon.co.uk MN58G8EI4",107.1,"Northicote Farm","5969","Equipment - Purchase","10/05/2019"
"Wolverhampton City Council","http://opendatacommunities.org/id/metropolitan-district-council/wolverhampton","ASDA GROCERIES ONLINE",-3.15,"Bradley Resource Centre","5411","Provisions (Not for resale)","09/05/2019"
"Wolverhampton City Council","http://opendatacommunities.org/id/metropolitan-district-council/wolverhampton","ASDA GROCERIES ONLINE",98.33,"Bradley Resource Centre","5411","Provisions (Not for resale)","09/05/2019"
"Wolverhampton City Council","http://opendatacommunities.org/id/metropolitan-district-council/wolverhampton","POUNDLAND",6,"Youth Offending Team","5310","Equipment - Purchase","09/05/2019"
"Wolverhampton City Council","http://opendatacommunities.org/id/metropolitan-district-council/wolverhampton","NATWEST BANK",200,"NRPF","6011","No Recourse to Public Funds","09/05/2019"
"Wolverhampton City Council","http://opendatacommunities.org/id/metropolitan-district-council/wolverhampton","NATWEST BANK",200,"NRPF","6011","No Recourse to Public Funds","09/05/2019"
"Wolverhampton City Council","http://opendatacommunities.org/id/metropolitan-district-council/wolverhampton","TESCO STORES 5194",-1.5,"Towers Outdoor Education Centre","5411","Provisions (Not for resale)","09/05/2019"
"Wolverhampton City Council","http://opendatacommunities.org/id/metropolitan-district-council/wolverhampton","ARGOS RETAIL GROUP",49.99,"Fostering Team & Allowances","5310","Equipment - Purchase","09/05/2019"
"Wolverhampton City Council","http://opendatacommunities.org/id/metropolitan-district-council/wolverhampton","Virgin Trains",243.55,"Fostering Team & Allowances","4112","Public Transport","09/05/2019"
"Wolverhampton City Council","http://opendatacommunities.org/id/metropolitan-district-council/wolverhampton","GOOGLE  ADS9680351324",500,"Communications & Marketing - General","5968","Subscriptions","09/05/2019"
"Wolverhampton City Council","http://opendatacommunities.org/id/metropolitan-district-council/wolverhampton","Cross Country Trains",91.7,"HR Advice","4112","Public Transport","09/05/2019"
"Wolverhampton City Council","http://opendatacommunities.org/id/metropolitan-district-council/wolverhampton","Wiggle Limited",53.85,"Bert Williams Leisure Centre","5941","Equipment - Purchase","09/05/2019"
"Wolverhampton City Council","http://opendatacommunities.org/id/metropolitan-district-council/wolverhampton","SAINSBURYS PFS (1340)",2,"Mayoral Expenses","5541","Vehicle Maintenance - Repairs","09/05/2019"
"Wolverhampton City Council","http://opendatacommunities.org/id/metropolitan-district-council/wolverhampton","THE POST OFFICE",2.96,"Cemeteries","9402","Comms - Postage","09/05/2019"
"Wolverhampton City Council","http://opendatacommunities.org/id/metropolitan-district-council/wolverhampton","B & Q 1243",14.35,"Public Conveniences","5211","Materials","09/05/2019"
"Wolverhampton City Council","http://opendatacommunities.org/id/metropolitan-district-council/wolverhampton","PAYPAL  MAKX LTD",-36.12,"Strategic ICTS (ICT Serv Budget)","4812","Comms - Mobile Telephones","09/05/2019"
"Wolverhampton City Council","http://opendatacommunities.org/id/metropolitan-district-council/wolverhampton","WWWSIGHTANDSOUND.CO.UK",350,"Strategic ICTS (ICT Serv Budget)","5045","Computing - Purchase of Software","09/05/2019"
"Wolverhampton City Council","http://opendatacommunities.org/id/metropolitan-district-council/wolverhampton","ALLIANCE DISPOSABLES",85.28,"Creative Studies Delivery Area","5811","Catering","09/05/2019"
"Wolverhampton City Council","http://opendatacommunities.org/id/metropolitan-district-council/wolverhampton","Amazon.co.uk MN0W32E94",62.5,"Creative Studies Delivery Area","5969","Equipment - Purchase","09/05/2019"
"Wolverhampton City Council","http://opendatacommunities.org/id/metropolitan-district-council/wolverhampton","AMZNMKTPLACE AMAZON.CO",29.98,"Court Team","5999","Equipment - Health and Safety","09/05/2019"
"Wolverhampton City Council","http://opendatacommunities.org/id/metropolitan-district-council/wolverhampton","BOWMONK LTD",74.17,"Fleet Management","5533","Equipment - R & M","09/05/2019"
"Wolverhampton City Council","http://opendatacommunities.org/id/metropolitan-district-council/wolverhampton","Amazon.co.uk MN6GG7EO4",31.62,"Northicote Farm","5969","Clothing / Uniforms","09/05/2019"
"Wolverhampton City Council","http://opendatacommunities.org/id/metropolitan-district-council/wolverhampton","PENKRIDGE SST",17.4,"Research & Development","4112","Public Transport","08/05/2019"
"Wolverhampton City Council","http://opendatacommunities.org/id/metropolitan-district-council/wolverhampton","WWW.ICELAND.CO.UK",35.35,"Bradley Resource Centre","5411","Provisions (Not for resale)","08/05/2019"
"Wolverhampton City Council","http://opendatacommunities.org/id/metropolitan-district-council/wolverhampton","THE RED HOUSE",54.97,"IMPACT","5691","Equipment - Purchase","08/05/2019"
"Wolverhampton City Council","http://opendatacommunities.org/id/metropolitan-district-council/wolverhampton","Trainline.com",42.23,"Research & Development","4112","Public Transport","08/05/2019"
"Wolverhampton City Council","http://opendatacommunities.org/id/metropolitan-district-council/wolverhampton","WM MORRISON FOOD.COM",87.25,"Discretionary Fund","5411","Materials","08/05/2019"
"Wolverhampton City Council","http://opendatacommunities.org/id/metropolitan-district-council/wolverhampton","NATWEST BANK",200,"NRPF","6011","No Recourse to Public Funds","08/05/2019"
"Wolverhampton City Council","http://opendatacommunities.org/id/metropolitan-district-council/wolverhampton","GRPPS",62,"Towers Outdoor Education Centre","7210","Fixtures and Fittings - Purchases","08/05/2019"
"Wolverhampton City Council","http://opendatacommunities.org/id/metropolitan-district-council/wolverhampton","TESCO STORES 5194",157.18,"Towers Outdoor Education Centre","5411","Provisions (Not for resale)","08/05/2019"
"Wolverhampton City Council","http://opendatacommunities.org/id/metropolitan-district-council/wolverhampton","VALUE PRODUCTS LTD",25.55,"Towers Outdoor Education Centre","5999","Fixtures and Fittings - Purchases","08/05/2019"
"Wolverhampton City Council","http://opendatacommunities.org/id/metropolitan-district-council/wolverhampton","AMZN Mktp UK MN7Y69TX4",22.18,"Towers Outdoor Education Centre","5942","Equipment - Purchase","08/05/2019"
"Wolverhampton City Council","http://opendatacommunities.org/id/metropolitan-district-council/wolverhampton","000002200500000",250,"CIN/CP Social Work Unit - Area 6","6011","Section 17","08/05/2019"
"Wolverhampton City Council","http://opendatacommunities.org/id/metropolitan-district-council/wolverhampton","Virgin Trains",195,"Fostering Team & Allowances","4112","Public Transport","08/05/2019"
"Wolverhampton City Council","http://opendatacommunities.org/id/metropolitan-district-council/wolverhampton","ONEBELOW",20.05,"Wholly Owned Company - Operations","5411","Provisions (Not for resale)","08/05/2019"
"Wolverhampton City Council","http://opendatacommunities.org/id/metropolitan-district-council/wolverhampton","ASDA SUPERSTORE",110.28,"Mayoral Expenses","5411","Provisions (Not for resale)","08/05/2019"
"Wolverhampton City Council","http://opendatacommunities.org/id/metropolitan-district-council/wolverhampton","The Plastic Box Compan",101.52,"Central Baths","5085","Equipment - Purchase","08/05/2019"
"Wolverhampton City Council","http://opendatacommunities.org/id/metropolitan-district-council/wolverhampton","AMZNMktplace",20.93,"Civic Centre Catering","5999","Equipment - Purchase","08/05/2019"
"Wolverhampton City Council","http://opendatacommunities.org/id/metropolitan-district-council/wolverhampton","SANDGATE WORCESTER LTD",212.5,"Workforce Development","7011","Accommodation Costs","08/05/2019"
"Wolverhampton City Council","http://opendatacommunities.org/id/metropolitan-district-council/wolverhampton","WWW.SOLACE.ORG.UK",625,"Central Training","8699","Training Expenses","08/05/2019"
"Wolverhampton City Council","http://opendatacommunities.org/id/metropolitan-district-council/wolverhampton","Virgin Trains",184,"Welfare Rights","4112","Public Transport","08/05/2019"
"Wolverhampton City Council","http://opendatacommunities.org/id/metropolitan-district-council/wolverhampton","BRITANNIA",35,"MASH","7011","Services - Supplies & Services to users","08/05/2019"
"Wolverhampton City Council","http://opendatacommunities.org/id/metropolitan-district-council/wolverhampton","ARGOS RETAIL GROUP",423.27,"Private Sector Housing","5310","Equipment - Purchase","08/05/2019"
"Wolverhampton City Council","http://opendatacommunities.org/id/metropolitan-district-council/wolverhampton","HOMEBASE LTD 103",88.55,"Northicote Farm","5211","Materials","08/05/2019"
"Wolverhampton City Council","http://opendatacommunities.org/id/metropolitan-district-council/wolverhampton","AMZNMktplace",19.98,"Northicote Farm","5999","Equipment - Purchase","08/05/2019"
"Wolverhampton City Council","http://opendatacommunities.org/id/metropolitan-district-council/wolverhampton","AMZNMktplace",54.99,"Northicote Farm","5999","Equipment - Purchase","08/05/2019"
"Wolverhampton City Council","http://opendatacommunities.org/id/metropolitan-district-council/wolverhampton","PP 6569CODE",1,"Northicote Farm","8999","Equipment - Purchase","08/05/2019"
"Wolverhampton City Council","http://opendatacommunities.org/id/metropolitan-district-council/wolverhampton","AMZNMktplace",15.82,"Northicote Farm","5999","Equipment - Purchase","08/05/2019"
"Wolverhampton City Council","http://opendatacommunities.org/id/metropolitan-district-council/wolverhampton","AMZNMktplace",15.82,"Northicote Farm","5999","Equipment - Purchase","08/05/2019"
"Wolverhampton City Council","http://opendatacommunities.org/id/metropolitan-district-council/wolverhampton","AMZNMktplace",49.67,"Northicote Farm","5999","Equipment - Purchase","08/05/2019"
"Wolverhampton City Council","http://opendatacommunities.org/id/metropolitan-district-council/wolverhampton","AMZNMktplace",64.45,"Northicote Farm","5999","Clothing / Uniforms","08/05/2019"
"Wolverhampton City Council","http://opendatacommunities.org/id/metropolitan-district-council/wolverhampton","ASDA GROCERIES ONLINE",-1.75,"Bradley Resource Centre","5411","Provisions (Not for resale)","07/05/2019"
"Wolverhampton City Council","http://opendatacommunities.org/id/metropolitan-district-council/wolverhampton","ASDA GROCERIES ONLINE",-1,"Bradley Resource Centre","5411","Provisions (Not for resale)","07/05/2019"
"Wolverhampton City Council","http://opendatacommunities.org/id/metropolitan-district-council/wolverhampton","ASDA GROCERIES ONLINE",133.01,"Bradley Resource Centre","5411","Provisions (Not for resale)","07/05/2019"
"Wolverhampton City Council","http://opendatacommunities.org/id/metropolitan-district-council/wolverhampton","AMZNMktplace",6.97,"LAC Transitions Team","5999","Equipment - Purchase","07/05/2019"
"Wolverhampton City Council","http://opendatacommunities.org/id/metropolitan-district-council/wolverhampton","NAMESCO",34.99,"City Direct","4816","Computing - Purchase of Software","07/05/2019"
"Wolverhampton City Council","http://opendatacommunities.org/id/metropolitan-district-council/wolverhampton","PREMIER INN",269,"LAC Team","3811","Accommodation Costs","07/05/2019"
"Wolverhampton City Council","http://opendatacommunities.org/id/metropolitan-district-council/wolverhampton","AMZNMktplace",191.66,"Central Baths","5999","Equipment - Purchase","07/05/2019"
"Wolverhampton City Council","http://opendatacommunities.org/id/metropolitan-district-council/wolverhampton","ASDA GROCERIES ONLINE",52.67,"Ernest Bold Court","5411","Provisions (Not for resale)","07/05/2019"
"Wolverhampton City Council","http://opendatacommunities.org/id/metropolitan-district-council/wolverhampton","TVLICENSING.CO.UK",154.5,"Ernest Bold Court","7392","Services - General Licences","07/05/2019"
"Wolverhampton City Council","http://opendatacommunities.org/id/metropolitan-district-council/wolverhampton","AMZNMktplace",5.99,"Civic Centre Catering","5999","Equipment - Purchase","07/05/2019"
"Wolverhampton City Council","http://opendatacommunities.org/id/metropolitan-district-council/wolverhampton","ASDA STORE 4753",24.23,"Bradley Resource Centre","5411","Provisions (Not for resale)","06/05/2019"
"Wolverhampton City Council","http://opendatacommunities.org/id/metropolitan-district-council/wolverhampton","ASDA GROCERIES ONLINE",69.71,"Bradley Resource Centre","5411","Provisions (Not for resale)","06/05/2019"
"Wolverhampton City Council","http://opendatacommunities.org/id/metropolitan-district-council/wolverhampton","AMZN Mktp UK MN5AF83W4",23.32,"LAC Transitions Team","5942","Books","06/05/2019"
"Wolverhampton City Council","http://opendatacommunities.org/id/metropolitan-district-council/wolverhampton","B&M RETAIL",6.66,"LAC Transitions Team","5310","Equipment - Purchase","06/05/2019"
"Wolverhampton City Council","http://opendatacommunities.org/id/metropolitan-district-council/wolverhampton","B&M RETAIL",20.81,"LAC Transitions Team","5310","Equipment - Purchase","06/05/2019"
"Wolverhampton City Council","http://opendatacommunities.org/id/metropolitan-district-council/wolverhampton","B&M RETAIL",18.3,"LAC Transitions Team","5310","Equipment - Purchase","06/05/2019"
"Wolverhampton City Council","http://opendatacommunities.org/id/metropolitan-district-council/wolverhampton","B&M RETAIL",21.3,"LAC Transitions Team","5310","Equipment - Purchase","06/05/2019"
"Wolverhampton City Council","http://opendatacommunities.org/id/metropolitan-district-council/wolverhampton","B&M RETAIL",24.19,"LAC Transitions Team","5310","Equipment - Purchase","06/05/2019"
"Wolverhampton City Council","http://opendatacommunities.org/id/metropolitan-district-council/wolverhampton","AMZNMktplace",5.41,"LAC Transitions Team","5999","Equipment - Purchase","06/05/2019"
"Wolverhampton City Council","http://opendatacommunities.org/id/metropolitan-district-council/wolverhampton","WWW.BRISTOWSUTOR.C",0,"Parking Enforcement","9399","R9382","06/05/2019"
"Wolverhampton City Council","http://opendatacommunities.org/id/metropolitan-district-council/wolverhampton","QUALITY HOTEL DUDLEY",225,"CIN/CP Social Work Unit - Area 7","7011","Accommodation Costs","06/05/2019"
"Wolverhampton City Council","http://opendatacommunities.org/id/metropolitan-district-council/wolverhampton","LICENSING COUNTER",21,"Mayoral Expenses","9399","Services - Fees and Charges","06/05/2019"
"Wolverhampton City Council","http://opendatacommunities.org/id/metropolitan-district-council/wolverhampton","HMCOURTS-SERVICE.G",20,"LAC Transitions Team","9222","Services - Fees and Charges","06/05/2019"
"Wolverhampton City Council","http://opendatacommunities.org/id/metropolitan-district-council/wolverhampton","AMZNMKTPLACE AMAZON.CO",59.69,"Towers Outdoor Education Centre","5999","Fixtures and Fittings - Purchases","06/05/2019"
"Wolverhampton City Council","http://opendatacommunities.org/id/metropolitan-district-council/wolverhampton","AMZNMKTPLACE AMAZON.CO",10.96,"Towers Outdoor Education Centre","5999","Fixtures and Fittings - Purchases","06/05/2019"
"Wolverhampton City Council","http://opendatacommunities.org/id/metropolitan-district-council/wolverhampton","AMZN Mktp UK MN5YH8ZT4",4.5,"Towers Outdoor Education Centre","5942","Fixtures and Fittings - Purchases","06/05/2019"
"Wolverhampton City Council","http://opendatacommunities.org/id/metropolitan-district-council/wolverhampton","AMZN Mktp UK MN1DX8ZX4",18.35,"Towers Outdoor Education Centre","5942","Fixtures and Fittings - Purchases","06/05/2019"
"Wolverhampton City Council","http://opendatacommunities.org/id/metropolitan-district-council/wolverhampton","PREMIER INN",77.08,"Fostering Team & Allowances","3811","Services - Supplies & Services to users","06/05/2019"
"Wolverhampton City Council","http://opendatacommunities.org/id/metropolitan-district-council/wolverhampton","GREGGS PLC",10.05,"Mayoral Expenses","5812","Hospitality","06/05/2019"
"Wolverhampton City Council","http://opendatacommunities.org/id/metropolitan-district-council/wolverhampton","MARKS&SPENCER PLC SACA",10,"Business Support Services","5411","Provisions (Not for resale)","06/05/2019"
"Wolverhampton City Council","http://opendatacommunities.org/id/metropolitan-district-council/wolverhampton","ASDA SUPERSTORE",33.27,"LAC Transitions Team","5411","Client Allowances","06/05/2019"
"Wolverhampton City Council","http://opendatacommunities.org/id/metropolitan-district-council/wolverhampton","Amazon.co.uk MN90C1Z34",11.99,"Strategic ICTS (ICT Serv Budget)","5969","Equipment - Purchase","06/05/2019"
"Wolverhampton City Council","http://opendatacommunities.org/id/metropolitan-district-council/wolverhampton","Amazon.co.uk MN9YF6ZG4",11.99,"Strategic ICTS (ICT Serv Budget)","5969","Equipment - Purchase","06/05/2019"
"Wolverhampton City Council","http://opendatacommunities.org/id/metropolitan-district-council/wolverhampton","Amazon.co.uk MN9Y84Z14",11.99,"Strategic ICTS (ICT Serv Budget)","5969","Equipment - Purchase","06/05/2019"
"Wolverhampton City Council","http://opendatacommunities.org/id/metropolitan-district-council/wolverhampton","Amazon.co.uk MN9L75ZM4",11.99,"Strategic ICTS (ICT Serv Budget)","5969","Equipment - Purchase","06/05/2019"
"Wolverhampton City Council","http://opendatacommunities.org/id/metropolitan-district-council/wolverhampton","Amazon.co.uk MN83X7ZA4",11.99,"Strategic ICTS (ICT Serv Budget)","5969","Equipment - Purchase","06/05/2019"
"Wolverhampton City Council","http://opendatacommunities.org/id/metropolitan-district-council/wolverhampton","Amazon.co.uk MN8YD8ZD4",11.99,"Strategic ICTS (ICT Serv Budget)","5969","Equipment - Purchase","06/05/2019"
"Wolverhampton City Council","http://opendatacommunities.org/id/metropolitan-district-council/wolverhampton","Amazon.co.uk MN8VJ3Z14",11.99,"Strategic ICTS (ICT Serv Budget)","5969","Equipment - Purchase","06/05/2019"
"Wolverhampton City Council","http://opendatacommunities.org/id/metropolitan-district-council/wolverhampton","Amazon.co.uk MN7Y82Z44",11.99,"Strategic ICTS (ICT Serv Budget)","5969","Equipment - Purchase","06/05/2019"
"Wolverhampton City Council","http://opendatacommunities.org/id/metropolitan-district-council/wolverhampton","Amazon.co.uk MN6YC8ZA4",11.99,"Strategic ICTS (ICT Serv Budget)","5969","Equipment - Purchase","06/05/2019"
"Wolverhampton City Council","http://opendatacommunities.org/id/metropolitan-district-council/wolverhampton","Amazon.co.uk MN6YC0Z84",11.99,"Strategic ICTS (ICT Serv Budget)","5969","Equipment - Purchase","06/05/2019"
"Wolverhampton City Council","http://opendatacommunities.org/id/metropolitan-district-council/wolverhampton","Amazon.co.uk MN5373Z04",11.99,"Strategic ICTS (ICT Serv Budget)","5969","Equipment - Purchase","06/05/2019"
"Wolverhampton City Council","http://opendatacommunities.org/id/metropolitan-district-council/wolverhampton","Amazon.co.uk MN5336ZQ4",11.99,"Strategic ICTS (ICT Serv Budget)","5969","Equipment - Purchase","06/05/2019"
"Wolverhampton City Council","http://opendatacommunities.org/id/metropolitan-district-council/wolverhampton","Amazon.co.uk MN4YC9ZR4",11.99,"Strategic ICTS (ICT Serv Budget)","5969","Equipment - Purchase","06/05/2019"
"Wolverhampton City Council","http://opendatacommunities.org/id/metropolitan-district-council/wolverhampton","Amazon.co.uk MN4VH3ZV4",11.99,"Strategic ICTS (ICT Serv Budget)","5969","Equipment - Purchase","06/05/2019"
"Wolverhampton City Council","http://opendatacommunities.org/id/metropolitan-district-council/wolverhampton","Amazon.co.uk MN33R3ZG4",11.99,"Strategic ICTS (ICT Serv Budget)","5969","Equipment - Purchase","06/05/2019"
"Wolverhampton City Council","http://opendatacommunities.org/id/metropolitan-district-council/wolverhampton","Amazon.co.uk MN33Q7ZP4",11.99,"Strategic ICTS (ICT Serv Budget)","5969","Equipment - Purchase","06/05/2019"
"Wolverhampton City Council","http://opendatacommunities.org/id/metropolitan-district-council/wolverhampton","Amazon.co.uk MN2YC2ZR4",11.99,"Strategic ICTS (ICT Serv Budget)","5969","Equipment - Purchase","06/05/2019"
"Wolverhampton City Council","http://opendatacommunities.org/id/metropolitan-district-council/wolverhampton","Amazon.co.uk MN2YC0Z64",11.99,"Strategic ICTS (ICT Serv Budget)","5969","Equipment - Purchase","06/05/2019"
"Wolverhampton City Council","http://opendatacommunities.org/id/metropolitan-district-council/wolverhampton","Amazon.co.uk MN2V04ZW4",11.99,"Strategic ICTS (ICT Serv Budget)","5969","Equipment - Purchase","06/05/2019"
"Wolverhampton City Council","http://opendatacommunities.org/id/metropolitan-district-council/wolverhampton","Amazon.co.uk MN2VZ2Z44",14.39,"Strategic ICTS (ICT Serv Budget)","5969","Equipment - Purchase","06/05/2019"
"Wolverhampton City Council","http://opendatacommunities.org/id/metropolitan-district-council/wolverhampton","Amazon.co.uk MN2VW1ZM4",11.99,"Strategic ICTS (ICT Serv Budget)","5969","Equipment - Purchase","06/05/2019"
"Wolverhampton City Council","http://opendatacommunities.org/id/metropolitan-district-council/wolverhampton","Amazon.co.uk MN2VA6ZU4",11.99,"Strategic ICTS (ICT Serv Budget)","5969","Equipment - Purchase","06/05/2019"
"Wolverhampton City Council","http://opendatacommunities.org/id/metropolitan-district-council/wolverhampton","Amazon.co.uk MN13U1ZV4",11.99,"Strategic ICTS (ICT Serv Budget)","5969","Equipment - Purchase","06/05/2019"
"Wolverhampton City Council","http://opendatacommunities.org/id/metropolitan-district-council/wolverhampton","Amazon.co.uk MN1VW5ZS4",11.99,"Strategic ICTS (ICT Serv Budget)","5969","Equipment - Purchase","06/05/2019"
"Wolverhampton City Council","http://opendatacommunities.org/id/metropolitan-district-council/wolverhampton","Amazon.co.uk MN1VT7Z24",11.99,"Strategic ICTS (ICT Serv Budget)","5969","Equipment - Purchase","06/05/2019"
"Wolverhampton City Council","http://opendatacommunities.org/id/metropolitan-district-council/wolverhampton","WWW.ACCESSDISPLAY.CO.U",509,"Central Baths","5999","Equipment - Purchase","06/05/2019"
"Wolverhampton City Council","http://opendatacommunities.org/id/metropolitan-district-council/wolverhampton","Virgin Trains",43.7,"LAC Team","4112","Public Transport","06/05/2019"
"Wolverhampton City Council","http://opendatacommunities.org/id/metropolitan-district-council/wolverhampton","WWW.ARGOS.CO.UK",183.95,"Duke Street Bungalows","5310","Equipment - Purchase","06/05/2019"
"Wolverhampton City Council","http://opendatacommunities.org/id/metropolitan-district-council/wolverhampton","COMPLETE CARE SHOP",23.9,"Blakenhall Commty & Healthy Living Ctr","5399","Equipment - Purchase","06/05/2019"
"Wolverhampton City Council","http://opendatacommunities.org/id/metropolitan-district-council/wolverhampton","Wix.com",186.26,"Technical Support","5817","Computing - Purchase of Software","06/05/2019"
"Wolverhampton City Council","http://opendatacommunities.org/id/metropolitan-district-council/wolverhampton","CardtronicsUK",30,"EIP Locality 3","6011","Grant Payments","06/05/2019"
"Wolverhampton City Council","http://opendatacommunities.org/id/metropolitan-district-council/wolverhampton","GEN REGISTER OFFICE",-31.5,"LAC Team","9399","Services - Fees and Charges","06/05/2019"
"Wolverhampton City Council","http://opendatacommunities.org/id/metropolitan-district-council/wolverhampton","ASDA GROCERIES ONLINE",-0.89,"Ernest Bold Court","5411","Provisions (Not for resale)","06/05/2019"
"Wolverhampton City Council","http://opendatacommunities.org/id/metropolitan-district-council/wolverhampton","ASDA GROCERIES ONLINE",60.25,"Ernest Bold Court","5411","Provisions (Not for resale)","06/05/2019"
"Wolverhampton City Council","http://opendatacommunities.org/id/metropolitan-district-council/wolverhampton","VIRGIN MEDIA PYMTS",9,"Community Enablement","4814","Comms - Telephone Call charges","06/05/2019"
"Wolverhampton City Council","http://opendatacommunities.org/id/metropolitan-district-council/wolverhampton","WEST MID TRAVEL",182.35,"Community Pathways","4131","Public Transport","06/05/2019"
"Wolverhampton City Council","http://opendatacommunities.org/id/metropolitan-district-council/wolverhampton","LIDL GB  DUDLEY",25.23,"Children & Family Contact Services","5411","Cleaning Supplies and Materials","06/05/2019"
"Wolverhampton City Council","http://opendatacommunities.org/id/metropolitan-district-council/wolverhampton","BOOSEY & HAWKES",114.95,"Music Support Team","5733","Equipment - R & M","06/05/2019"
"Wolverhampton City Council","http://opendatacommunities.org/id/metropolitan-district-council/wolverhampton","WWW.ELITEINDUSTRIAL.CO",184.79,"Communications & Marketing - General","5999","Equipment - Purchase","06/05/2019"
"Wolverhampton City Council","http://opendatacommunities.org/id/metropolitan-district-council/wolverhampton","WWW.MOVERSANDSHAKERS.U",65.94,"HRA General","8699","Conference Expenses","06/05/2019"
"Wolverhampton City Council","http://opendatacommunities.org/id/metropolitan-district-council/wolverhampton","LOYD 37 CHURCH STREET",350,"EIP Locality 8","6011","Grant Payments","03/05/2019"
"Wolverhampton City Council","http://opendatacommunities.org/id/metropolitan-district-council/wolverhampton","HOME BARGAINS WOLVERHA",33.43,"Key to Inspiration","5251","Equipment - Purchase","03/05/2019"
"Wolverhampton City Council","http://opendatacommunities.org/id/metropolitan-district-council/wolverhampton","RIBA SERVICES",236.17,"Capital Programme Team","5942","Books","03/05/2019"
"Wolverhampton City Council","http://opendatacommunities.org/id/metropolitan-district-council/wolverhampton","Virgin Trains",117.9,"Central Utilities to Recharge","4112","Public Transport","03/05/2019"
"Wolverhampton City Council","http://opendatacommunities.org/id/metropolitan-district-council/wolverhampton","WWW.ICELAND.CO.UK",156.61,"Bradley Resource Centre","5411","Provisions (Not for resale)","03/05/2019"
"Wolverhampton City Council","http://opendatacommunities.org/id/metropolitan-district-council/wolverhampton","STARNET.COM ORDER #247",148.73,"Strategic ICTS (ICT Serv Budget)","5734","Computing - Purchase of Software","03/05/2019"
"Wolverhampton City Council","http://opendatacommunities.org/id/metropolitan-district-council/wolverhampton","WWW.ARGOS.CO.UK",77.02,"LAC Transitions Team","5310","Equipment - Purchase","03/05/2019"
"Wolverhampton City Council","http://opendatacommunities.org/id/metropolitan-district-council/wolverhampton","000002200500000",200,"Childrens with Disabilities Team","6011","Financial Assistance In Exceptional Circ","03/05/2019"
"Wolverhampton City Council","http://opendatacommunities.org/id/metropolitan-district-council/wolverhampton","Amazon.co.uk MN6M51Z64",18.72,"Regional Adoption Agency","5969","Stationery","03/05/2019"
"Wolverhampton City Council","http://opendatacommunities.org/id/metropolitan-district-council/wolverhampton","POST OFFICE COUNTER",285,"Regional Adoption Agency","9402","Comms - Postage","03/05/2019"
"Wolverhampton City Council","http://opendatacommunities.org/id/metropolitan-district-council/wolverhampton","CO-OP GROUP 070228",2,"Towers Outdoor Education Centre","5411","Provisions (Not for resale)","03/05/2019"
"Wolverhampton City Council","http://opendatacommunities.org/id/metropolitan-district-council/wolverhampton","Virgin Trains",131.7,"Fostering Team & Allowances","4112","Public Transport","03/05/2019"
"Wolverhampton City Council","http://opendatacommunities.org/id/metropolitan-district-council/wolverhampton","ALDI 94 772",21.93,"Business Support Services","5411","Provisions (Not for resale)","03/05/2019"
"Wolverhampton City Council","http://opendatacommunities.org/id/metropolitan-district-council/wolverhampton","POUNDLAND LTD 1463",12,"Business Support Services","5310","Provisions (Not for resale)","03/05/2019"
"Wolverhampton City Council","http://opendatacommunities.org/id/metropolitan-district-council/wolverhampton","Trainline",47.5,"LAC Transitions Team","4112","Public Transport","03/05/2019"
"Wolverhampton City Council","http://opendatacommunities.org/id/metropolitan-district-council/wolverhampton","000002200500000",90,"LAC Transitions Team","6011","Financial Assistance In Exceptional Circ","03/05/2019"
"Wolverhampton City Council","http://opendatacommunities.org/id/metropolitan-district-council/wolverhampton","000002200500000",200,"LAC Transitions Team","6011","Financial Assistance In Exceptional Circ","03/05/2019"
"Wolverhampton City Council","http://opendatacommunities.org/id/metropolitan-district-council/wolverhampton","TVLICENSING.CO.UK",154.5,"LAC Transitions Team","7392","Client Allowances","03/05/2019"
"Wolverhampton City Council","http://opendatacommunities.org/id/metropolitan-district-council/wolverhampton","ASDA STORE 4351",63.33,"LAC Transitions Team","5411","Client Allowances","03/05/2019"
"Wolverhampton City Council","http://opendatacommunities.org/id/metropolitan-district-council/wolverhampton","POST OFFICE COUNTER",11,"LAC Team","9402","Comms - Postage","03/05/2019"
"Wolverhampton City Council","http://opendatacommunities.org/id/metropolitan-district-council/wolverhampton","POST OFFICE COUNTER",380,"LAC Team","9402","Comms - Postage","03/05/2019"
"Wolverhampton City Council","http://opendatacommunities.org/id/metropolitan-district-council/wolverhampton","SCREWFIX WOLVERHAM",3.69,"Public Conveniences","5211","Materials","03/05/2019"
"Wolverhampton City Council","http://opendatacommunities.org/id/metropolitan-district-council/wolverhampton","B & Q 1237",74.1,"Literature Festival","5200","Equipment - Purchase","03/05/2019"
"Wolverhampton City Council","http://opendatacommunities.org/id/metropolitan-district-council/wolverhampton","GEN REGISTER OFFICE",38,"LAC Team","9399","Financial Assistance In Exceptional Circ","03/05/2019"
"Wolverhampton City Council","http://opendatacommunities.org/id/metropolitan-district-council/wolverhampton","NATWEST BANK",200,"Democratic Support","6011","Public Transport","03/05/2019"
"Wolverhampton City Council","http://opendatacommunities.org/id/metropolitan-district-council/wolverhampton","NATWEST BANK",200,"NRPF","6011","No Recourse to Public Funds","03/05/2019"
"Wolverhampton City Council","http://opendatacommunities.org/id/metropolitan-district-council/wolverhampton","NATWEST BANK",200,"NRPF","6011","No Recourse to Public Funds","03/05/2019"
"Wolverhampton City Council","http://opendatacommunities.org/id/metropolitan-district-council/wolverhampton","ASDA GROCERIES ONLINE",30.83,"Inclusion Support","5411","Catering","03/05/2019"
"Wolverhampton City Council","http://opendatacommunities.org/id/metropolitan-district-council/wolverhampton","CLOCKING SYSTEM",495,"Parks - Ranger Service","5085","Equipment - Purchase","03/05/2019"
"Wolverhampton City Council","http://opendatacommunities.org/id/metropolitan-district-council/wolverhampton","AMZN Mktp UK MN7B13Z64",24.05,"Parks - Ranger Service","5942","Equipment - Purchase","03/05/2019"
"Wolverhampton City Council","http://opendatacommunities.org/id/metropolitan-district-council/wolverhampton","AMZN Digital",457.32,"Landscape","5735","Computing - Purchase of Software","03/05/2019"
"Wolverhampton City Council","http://opendatacommunities.org/id/metropolitan-district-council/wolverhampton","RYMAN",15.5,"Delivery & OCE Development","5943","Stationery","03/05/2019"
"Wolverhampton City Council","http://opendatacommunities.org/id/metropolitan-district-council/wolverhampton","Virgin Trains",150.5,"Scrutiny & Transparency","4112","Public Transport","03/05/2019"
"Wolverhampton City Council","http://opendatacommunities.org/id/metropolitan-district-council/wolverhampton","SUBWAY",39,"Corporate Parenting","5814","Educ Trips, Holidays, Outings, Activity","02/05/2019"
"Wolverhampton City Council","http://opendatacommunities.org/id/metropolitan-district-council/wolverhampton","SAINSBURYS (2340)",7.04,"Corporate Parenting","5411","Provisions (Not for resale)","02/05/2019"
"Wolverhampton City Council","http://opendatacommunities.org/id/metropolitan-district-council/wolverhampton","POUNDLAND LTD 1463",3.05,"Key to Inspiration","5310","Equipment - Purchase","02/05/2019"
"Wolverhampton City Council","http://opendatacommunities.org/id/metropolitan-district-council/wolverhampton","SAINSBURYS SACAT (2340",4.8,"Key to Inspiration","5411","Provisions (Not for resale)","02/05/2019"
"Wolverhampton City Council","http://opendatacommunities.org/id/metropolitan-district-council/wolverhampton","WWW.GOV.UK",10,"Revenues","8999","Services - Professional Fees","02/05/2019"
"Wolverhampton City Council","http://opendatacommunities.org/id/metropolitan-district-council/wolverhampton","WWW.CARESHOP.CO.UK",90.02,"Ernest Bold Court","5999","Materials","02/05/2019"
"Wolverhampton City Council","http://opendatacommunities.org/id/metropolitan-district-council/wolverhampton","ACE EMBROIDERY LTD",120,"Mayoral Expenses","1799","Clothing / Uniforms","02/05/2019"
"Wolverhampton City Council","http://opendatacommunities.org/id/metropolitan-district-council/wolverhampton","CO-OPERATIVE FOOD",1.47,"Regional Adoption Agency","5411","Provisions (Not for resale)","02/05/2019"
"Wolverhampton City Council","http://opendatacommunities.org/id/metropolitan-district-council/wolverhampton","TESCO STORES 5194",-6.5,"Towers Outdoor Education Centre","5411","Provisions (Not for resale)","02/05/2019"
"Wolverhampton City Council","http://opendatacommunities.org/id/metropolitan-district-council/wolverhampton","ALBRIGHTON HARDWARE",56.25,"Aldersley Leisure Village","5251","Equipment - Purchase","02/05/2019"
"Wolverhampton City Council","http://opendatacommunities.org/id/metropolitan-district-council/wolverhampton","ALBRIGHTON HARDWARE",5.41,"Aldersley Leisure Village","5251","Equipment - Purchase","02/05/2019"
"Wolverhampton City Council","http://opendatacommunities.org/id/metropolitan-district-council/wolverhampton","POST OFFICE COUNTER",8.7,"LAC Team","9402","Comms - Postage","02/05/2019"
"Wolverhampton City Council","http://opendatacommunities.org/id/metropolitan-district-council/wolverhampton","Amazon.co.uk MN93584C4",54.57,"Strategic ICTS (ICT Serv Budget)","5969","Equipment - Purchase","02/05/2019"
"Wolverhampton City Council","http://opendatacommunities.org/id/metropolitan-district-council/wolverhampton","POST OFFICE COUNTER",11,"LAC Team","9402","Comms - Postage","02/05/2019"
"Wolverhampton City Council","http://opendatacommunities.org/id/metropolitan-district-council/wolverhampton","COMPANY CARDS LTD",-96,"Technical Support","2741","Publications","02/05/2019"
"Wolverhampton City Council","http://opendatacommunities.org/id/metropolitan-district-council/wolverhampton","Amazon.co.uk MN9VO54E4",53.85,"Inclusion Support","5969","Equipment - Purchase","02/05/2019"
"Wolverhampton City Council","http://opendatacommunities.org/id/metropolitan-district-council/wolverhampton","SCREWFIX DIRECT",39.99,"Car Parks Operational Staff","5200","Equipment - Purchase","02/05/2019"
"Wolverhampton City Council","http://opendatacommunities.org/id/metropolitan-district-council/wolverhampton","WWW.TPEXPRESS.CO.UK",108.8,"Court Team","4112","Section 17","02/05/2019"
"Wolverhampton City Council","http://opendatacommunities.org/id/metropolitan-district-council/wolverhampton","Cross Country Trains",4.9,"Court Team","4112","Section 17","02/05/2019"
"Wolverhampton City Council","http://opendatacommunities.org/id/metropolitan-district-council/wolverhampton","STAGECOACH SERVICE",16.95,"Court Team","4131","Section 17","02/05/2019"
"Wolverhampton City Council","http://opendatacommunities.org/id/metropolitan-district-council/wolverhampton","GREETINGS HOUSE LTD",200,"Civic Centre Catering","5947","Equipment - Purchase","02/05/2019"
"Wolverhampton City Council","http://opendatacommunities.org/id/metropolitan-district-council/wolverhampton","GREETINGS HOUSE LTD",149,"Civic Centre Catering","5947","Equipment - Purchase","02/05/2019"
"Wolverhampton City Council","http://opendatacommunities.org/id/metropolitan-district-council/wolverhampton","CURRYS ONLINE",254.17,"Inclusion Support","5732","Equipment - Purchase","02/05/2019"
"Wolverhampton City Council","http://opendatacommunities.org/id/metropolitan-district-council/wolverhampton","Virgin Trains",134,"Music Support Team","4112","Public Transport","02/05/2019"
"Wolverhampton City Council","http://opendatacommunities.org/id/metropolitan-district-council/wolverhampton","AMZN Mktp UK MN1ZR04J4",31.64,"Parks - Ranger Service","5942","Equipment - Purchase","02/05/2019"
"Wolverhampton City Council","http://opendatacommunities.org/id/metropolitan-district-council/wolverhampton","AMZNMktplace",240,"Parks/Open Spaces - R & M","5999","Equipment - Purchase","02/05/2019"
"Wolverhampton City Council","http://opendatacommunities.org/id/metropolitan-district-council/wolverhampton","AMZNMktplace",78.32,"Waste Man.Partnership-Transfer Station","5999","Equipment - Purchase","02/05/2019"
"Wolverhampton City Council","http://opendatacommunities.org/id/metropolitan-district-council/wolverhampton","AMZNMktplace",177.56,"Parks - Management and Admin","5999","Equipment - Purchase","01/05/2019"
"Wolverhampton City Council","http://opendatacommunities.org/id/metropolitan-district-council/wolverhampton","Amazon.co.uk MN82B1O24",43.71,"Parks/Open Spaces - R & M","5969","Equipment - Purchase","01/05/2019"
"Wolverhampton City Council","http://opendatacommunities.org/id/metropolitan-district-council/wolverhampton","AMZNMktplace",14.99,"Parks - South West Area Management","5999","Equipment - Purchase","01/05/2019"
"Wolverhampton City Council","http://opendatacommunities.org/id/metropolitan-district-council/wolverhampton","AMZNMktplace",1.32,"Parks - Ranger Service","5999","Equipment - Purchase","01/05/2019"
"Wolverhampton City Council","http://opendatacommunities.org/id/metropolitan-district-council/wolverhampton","HOMEBASE LTD 103",95.45,"Key to Inspiration","5211","Materials","01/05/2019"
"Wolverhampton City Council","http://opendatacommunities.org/id/metropolitan-district-council/wolverhampton","SAINSBURYS SACAT (2340",15.1,"Key to Inspiration","5411","Provisions (Not for resale)","01/05/2019"
"Wolverhampton City Council","http://opendatacommunities.org/id/metropolitan-district-council/wolverhampton","ASDA GROCERIES ONLINE",-4.02,"Bradley Resource Centre","5411","Provisions (Not for resale)","01/05/2019"
"Wolverhampton City Council","http://opendatacommunities.org/id/metropolitan-district-council/wolverhampton","ASDA GROCERIES ONLINE",87.66,"Bradley Resource Centre","5411","Provisions (Not for resale)","01/05/2019"
"Wolverhampton City Council","http://opendatacommunities.org/id/metropolitan-district-council/wolverhampton","QUALITY OFFICE SUP",143.75,"Document Centre - General","5943","Stationery","01/05/2019"
"Wolverhampton City Council","http://opendatacommunities.org/id/metropolitan-district-council/wolverhampton","Virgin Trains",165,"LAC Transitions Team","4112","Public Transport","01/05/2019"
"Wolverhampton City Council","http://opendatacommunities.org/id/metropolitan-district-council/wolverhampton","EB  INTRODUCTION TO SO",30,"Research & Development","7399","Training Expenses","01/05/2019"
"Wolverhampton City Council","http://opendatacommunities.org/id/metropolitan-district-council/wolverhampton","WWW.CSKILLS.ORG",30,"IMPACT","8249","Training Expenses","01/05/2019"
"Wolverhampton City Council","http://opendatacommunities.org/id/metropolitan-district-council/wolverhampton","CUMMINGS BROTHERS LOCK",15,"Caretakers Community Centre","7399","Equipment - Purchase","01/05/2019"
"Wolverhampton City Council","http://opendatacommunities.org/id/metropolitan-district-council/wolverhampton","FACEBK ALYU3KNG52",43.35,"Visitor Economy - Development","7311","Marketing \ Non-staff advertising","01/05/2019"
"Wolverhampton City Council","http://opendatacommunities.org/id/metropolitan-district-council/wolverhampton","WM MORRISON FOOD.COM",115.49,"Discretionary Fund","5411","Materials","01/05/2019"
"Wolverhampton City Council","http://opendatacommunities.org/id/metropolitan-district-council/wolverhampton","BEATSABAR MUSIC PROJEC",158.3,"Youth Offending Team","5733","Equipment - Purchase","01/05/2019"
"Wolverhampton City Council","http://opendatacommunities.org/id/metropolitan-district-council/wolverhampton","CUMMINGS BROTHERS LOCK",22.08,"Caretakers Community Centre","7399","Equipment - Purchase","01/05/2019"
"Wolverhampton City Council","http://opendatacommunities.org/id/metropolitan-district-council/wolverhampton","Trainline",18.11,"Safeguarding Admin Resource","4112","Public Transport","01/05/2019"
"Wolverhampton City Council","http://opendatacommunities.org/id/metropolitan-district-council/wolverhampton","Trainline",6.21,"Safeguarding Admin Resource","4112","Public Transport","01/05/2019"
"Wolverhampton City Council","http://opendatacommunities.org/id/metropolitan-district-council/wolverhampton","BRITANNIA",40.83,"Emergency Duty Team","7011","Services - Supplies & Services to users","01/05/2019"
"Wolverhampton City Council","http://opendatacommunities.org/id/metropolitan-district-council/wolverhampton","WM MORRISONS STORE",3.7,"Regional Adoption Agency","5411","Provisions (Not for resale)","01/05/2019"
"Wolverhampton City Council","http://opendatacommunities.org/id/metropolitan-district-council/wolverhampton","TESCO STORES 5194",239.74,"Towers Outdoor Education Centre","5411","Provisions (Not for resale)","01/05/2019"
"Wolverhampton City Council","http://opendatacommunities.org/id/metropolitan-district-council/wolverhampton","FACEBK  6MG5QJWA82",149.85,"WV Active Marketing","7311","Marketing \ Non-staff advertising","01/05/2019"
"Wolverhampton City Council","http://opendatacommunities.org/id/metropolitan-district-council/wolverhampton","FACEBK  7RQQFLNAR2",120.14,"Communications & Marketing - General","7311","Marketing \ Non-staff advertising","01/05/2019"
"Wolverhampton City Council","http://opendatacommunities.org/id/metropolitan-district-council/wolverhampton","PRODUCT SUPPORT AG",6.66,"Headstart - Young People Engagement","5968","Computing - Maint Agreements","01/05/2019"
"Wolverhampton City Council","http://opendatacommunities.org/id/metropolitan-district-council/wolverhampton","PRODUCT SUPPORT AG",6.66,"Headstart - Young People Engagement","5968","Computing - Maint Agreements","01/05/2019"
"Wolverhampton City Council","http://opendatacommunities.org/id/metropolitan-district-council/wolverhampton","MARKS&SPENCER PLC SACA",13.5,"Business Support Services","5411","Provisions (Not for resale)","01/05/2019"
"Wolverhampton City Council","http://opendatacommunities.org/id/metropolitan-district-council/wolverhampton","AMZNMktplace",31.07,"Strategic ICTS (ICT Serv Budget)","5999","Equipment - Purchase","01/05/2019"
"Wolverhampton City Council","http://opendatacommunities.org/id/metropolitan-district-council/wolverhampton","QUEENSWAY INTERIOR",239,"LAC Transitions Team","5712","Client Allowances","01/05/2019"
"Wolverhampton City Council","http://opendatacommunities.org/id/metropolitan-district-council/wolverhampton","Virgin Trains",11.8,"Private Sector Housing","4112","Public Transport","01/05/2019"
"Wolverhampton City Council","http://opendatacommunities.org/id/metropolitan-district-council/wolverhampton","JAMES LISTER & SONS LT",80.21,"Culwell Street Depot","5085","R&M - Departmental planned (external)","01/05/2019"
"Wolverhampton City Council","http://opendatacommunities.org/id/metropolitan-district-council/wolverhampton","B & Q 1243",135.62,"Community Enablement","5211","Equipment - R & M","01/05/2019"
"Wolverhampton City Council","http://opendatacommunities.org/id/metropolitan-district-council/wolverhampton","INPRINT LITHO LIMITED",185,"Technical Support","2741","Publications","01/05/2019"
"Wolverhampton City Council","http://opendatacommunities.org/id/metropolitan-district-council/wolverhampton","WOLVERHAMPTON T/O",6.9,"Education And Access","4112","Public Transport","01/05/2019"
"Wolverhampton City Council","http://opendatacommunities.org/id/metropolitan-district-council/wolverhampton","J VAN VLIET BIRMINGHAM",88.07,"Creative Studies Delivery Area","5399","Materials for resale","01/05/2019"
